Workbook

Sheet Cover Page
D1: Add company logo
N2: Version 24.2b (for incinerators) - 27/11/24
N4: Note that there is another version of this template available for co-incinerators
B8: Add photo
N13: Notes:
N14: This template may require adjustments by individual operators to meet specific reporting requirements as defined in the site Permit(s)
B29: Annual Performance Report 2024
B31: Permit EPR/WP3438HZ
B33: Suffolk EfW
B37: SUEZ Recycling & Recovery UK Ltd
B39: Year: | C39: 2024
B41: Address: | C41: Lodge Lane, Great Blakenham, Suffolk, IP6 0JE
B43: Tel: | C43: 01473 839149
B45: Email: | C45: john.flounders@suez.com
B47: Prepared by: | C47: Richard Watkins | F47: Position: | G47: EIR Manager
C48: Robert Taylor | G48: Technical Plant Engineer
C49: Jasmine Bressler | G49: EIR Advisor
B50: Approved by: | C50: John Flounders | F50: Position: | G50: EfW Plant Manager
B52: Version: | C52: 1
B54: Issue Date: | C54: 2025-01-27

Sheet Facility Info
A1: =+'Cover Page'!$B$29 -> Annual Performance Report 2024 | E1: =+'Cover Page'!$B$33 -> Suffolk EfW
A3: Plant Description and Design | K3: Notes:
A5: This non-hazardous waste incinerator operates 24/7 across two furnace lines and can receive up to 295,000 tonnes of municipal waste and commercial/Industrial waste per annum. The heat produced by waste incineration is used to raise superheated steam which generates approximately 185,000 MWh/annum of electricity. Activities associated with the incineration are receipt and storage of municipal waste and commercial/industrial waste, production of steam and electricity, abatement of flue gas and handling of Incinerator Bottom Ash (IBA) and Air Pollution Control Residue (APCR). Suffolk EfW commissioning finished on 1st December 2014, when the plant was handed over from the EPC contractor to SUEZ UK. Permit conditions have applied since this date. The data included in this report corresponds to the following period; 01 January 2024 to 31 December 2024. | K5: Include summary of plant design, design capacity, no. of combustion lines, electrical and heat capacity and any other general information that describes the facility, its location and purpose
A20: Summary of Operational Processes and Procedures
A22: RECEPTION HALL & BUNKER Incoming waste is delivered to site by refuse collection trucks. It is then checked in, weighed and delivered into the reception hall. A large reception hall allows for refuse collection trucks to manoeuvre and tip waste safely. Air needed for combustion is drawn into the furnace from here so that negative pressure is maintained in order to avoid odour and dust escaping the building. Waste vehicles reverse to a wheel stop and tip their loads into a large concrete bunker. Mixing of waste occurs as the cranes driver sorts the waste looking for unsuitable material to be removed, and to improve the homogeneity of the incinerator feedstock. CONTROL ROOM The plant’s control room centralises the operation of all equipment, including the grab cranes used to mix and load waste into a hopper that feeds the furnace. All on-site functions are monitored automatically and manually. Its systems verify in real time that equipment is functioning properly, continuously monitor the combustion gas, and maximise the efficiency of the entire EfW process. GRATE AND BOILER Waste is lifted into the charging hoppers by the crane. From here it falls into the furnace-charging chute and then is introduced onto the grate system by hydraulic feeders for incineration. An auxiliary burner can be used to help keeping the temperature above 850°C if required. The thermal energy released from the burning is used to convert water to super-heated steam along a boiler composed of 6 vertical passes. At high pressure, this steam drives a turbine to generate electricity. ELECTRICITY GENERATION Electricity is generated at 11kv, with an electric production of 203,226 MWh during 2023 and exporting 184,527 MWh/annum to the national grid. INCINERATOR BOTTOM ASH (IBA) Ash left on the grate after incineration is carried by conveyor, after quenching, to the IBA processing facility. Up to 65,000 tonne of IBA is processed on site by the removal of ferrous and non-ferrous metal, stabilised and separated into fraction sizes of IBA prior to the export from site of the processed IBA and metals for re-use. EMISSION CONTROL & AIR POLLUTION CONTROL RESIDUE (APCR) The gases from the furnace are subject to a rigorous cleaning process involving urea as selective non-catalytic reduction (SNCR), lime and active carbon injections. This removes oxides of nitrogen, acidic gases, dioxins, and heavy metals from the gas stream. The cleaned gas passes through fine-fabric bag filters to remove solid particles before it is emitted through the stack. The resultant APCR residue, or fly-ash, contains particles from the incineration process, lime used in the flue gas treatment, salts and carbon dust. It is stored in a sealed silo until it is tankered away for recycling. EMISSIONS MONITORING As they pass through the stack, the residual flue gases from the process are continuously monitored before release. This data is relayed automatically to the control room. | K22: Include summary of key processes and procedures such as (but not limited to); waste reception, control rooms, grate, bed and boiler, energy & heat generation, cooling systems, residue management, emission controls, health and safety systems, maintenance

Sheet Contents
A1: =+'Cover Page'!$B$29 -> Annual Performance Report 2024 | E1: =+'Cover Page'!$B$33 -> Suffolk EfW
A3: Contents | K3: Notes:
A4: Section | B4: Subject | H4: Page | K4: Section references and Page nos. to be inserted
B5: Facility Information | K5: Sections and Subjects may require adjustment by individual operators to meet specific reporting requirements as defined in the sites Permit(s)
B6: Operational Data
B7: Operational Summary
B8: Performance Form 1
B9: Energy Form 1
B10: Permit Compliance
B11: Improvements
B12: Public Liaison
B13: Carbon dioxide and nitrous oxide emissions
B14: Residue Quality
B15: Emissions to Water
B16: Emissions to Air (periodically monitored)
B17: Emissions to Air (continuously monitored)
B18: Hydrogen Chloride emissions
B19: Sulphur Dioxide emissions
B20: Oxides of Nitrogen emissions
B21: Total Organic Carbon emissions
B22: Particulate Matter emissions
B23: Carbon Monoxide emissions
B24: Ammonia emissions
A27: Version Control
A28: Section | B28: Information | H28: Date
A29: 1 | B29: Original Report | H29: 2025-01-27
A35: Distribution
A36: Copy | B36: Name, Role | H36: No.
A37: 1 | B37: Katy Poulding - Environment Agency Regulatory Officer | H37: 1
A38: 2 | B38: John Flounders - SUEZ Plant Manager | H38: 1
A45: This report is required under the Industrial Emissions Directive’s Article 55(2) requirements on reporting and public information on waste incineration plants and co-incineration plants, which require the operator to produce an annual report on the functioning and monitoring of the plant and make it available to the public.

Sheet Operational Data
A1: =+'Cover Page'!$B$29 -> Annual Performance Report 2024 | E1: =+'Cover Page'!$B$33 -> Suffolk EfW
A3: Operational Data
A4: Plant Size | B4: 295000 | D4: tonnes pa | E4: 89 | F4: MWth | G4: 28.5 | H4: MWe | J4: Notes:
A5: No. of combustion lines | B5: 2 | D5: No. of Turbines: | F5: 1 | J5: * - RDF to include SRF
J6: ** - Combusted tonnage = tonnes delivered in period + (tonnes in bunker at start of period – tonnes in bunker at end of period), or equivalent calculation depending on plant type
A7: Waste types received | B7: Unit | C7: Q1 | D7: Q2 | E7: Q3 | F7: Q4 | G7: Year Total | H7: %
A8: Household / Local Authority | B8: tonnes | C8: 66736 | D8: 55567 | E8: 67194 | F8: 65994 | G8: =SUM(C8:F8) -> 255491 | H8: =IF(G8>0,G8/$G$18,"-") -> 0.8914923165
A9: Commercial & Industrial | C9: 5844 | D9: 3900 | E9: 6426 | F9: 7885 | G9: =SUM(C9:F9) -> 24055 | H9: 0.08393582425 | J9: *** - CHP plants only
A10: Hazardous | C10: - | D10: - | E10: - | F10: - | G10: 0 | H10: - | J10: **** Availability Definition: 'the availability of a line is to be calculated by the number of hours the line reported Continuously Monitored emission levels to the Regulator through the calendar year divided by the total number of hours in that year. The overall plant availability is calculated as the Mean of all lines in the plant. For clarity this includes periods of abnormal operation.' Rationale: The primary function of an Energy from Waste facility is the disposal of waste. It follows therefore that the availability of a plant is determined by the period of time a facility spends undertaking this activity.
A11: Clinical | C11: 1616 | D11: 689 | E11: 1834 | F11: 2903 | G11: 7042 | H11: 0.02457185925
A12: Waste wood (biomass) | G12: 0 | H12: -
A13: Refuse Derived Fuel * - H'hold/LA | G13: =SUM(C13:F13) -> 0 | H13: -
A14: Refuse Derived Fuel * - C&I | G14: 0 | H14: -
A15: Other [Please specify] | G15: 0 | H15: -
A16: Other [Please specify] | G16: 0 | H16: -
A17: Other [Please specify] | G17: 0 | H17: -
A18: Total waste received | C18: =SUM(C8:C17) -> 74196 | D18: =SUM(D8:D17) -> 60156 | E18: =SUM(E8:E17) -> 75454 | F18: =SUM(F8:F17) -> 76782 | G18: 286588
A19: Rejected Waste | G19: =SUM(C19:F19) -> 0 | H19: =IF(G19>0,G19/$G$18,"-") -> -
A20: Unprocessed waste transferred out | G20: =SUM(C20:F20) -> 0 | H20: =IF(G20>0,G20/$G$18,"-") -> -
A21: Total waste combusted ** | C21: =C18+1490-632 -> 75054 | D21: =632+D18-2722 -> 58066 | E21: =2722+E18-3071 -> 75105 | F21: =3071+F18-2898 -> 76955 | G21: =SUM(C21:F21) -> 285180
J22: Password for protected cells A password has been set to prevent accidental editing of cells with formulae. If you still need to make an edit for some reason then the password = 1234
A23: Energy Usage / Export | B23: Unit | C23: Q1 | D23: Q2 | E23: Q3 | F23: Q4 | G23: Year Total | H23: KWh/te
A24: Power Generated | B24: MWh | C24: 52348.11331 | D24: 42619.3905 | E24: 58525.99512 | F24: 53911.87342 | G24: =SUM(C24:F24) -> 207405.3723 | H24: =IF(G24>0,G24*1000/$G$21,"-") -> 727.2788146
A25: Power Exported | C25: 46542.10903 | D25: 37763.08112 | E25: 52143.20451 | F25: 47953.39091 | G25: =SUM(C25:F25) -> 184401.7856 | H25: =IF(G25>0,G25*1000/$G$21,"-") -> 646.6154203
A26: Power Used on site | C26: 5806.004284 | D26: 4856.309382 | E26: 6382.790605 | F26: 5958.482509 | G26: =SUM(C26:F26) -> 23003.58678 | H26: =IF(G26>0,G26*1000/$G$21,"-") -> 80.66339428
A27: Power Imported | C27: 41.229 | D27: 257.547 | E27: 2.544384 | F27: 31.375 | G27: 332.695384 | H27: =IF(G27>0,G27*1000/$G$21,"-") -> 1.166615415
A28: Parasitic Load | B28: % | C28: =IF(C24>0,1-C25/(C24+C27),"-") -> 0.1116111221 | D28: =IF(D24>0,1-D25/(D24+D27),"-") -> 0.1192682286 | E28: =IF(E24>0,1-E25/(E24+E27),"-") -> 0.1090978016 | F28: =IF(F24>0,1-F25/(F24+F27),"-") -> 0.1110399853 | G28: =IF(G24>0,1-G25/(G24+G27),"-") -> 0.1123351267
A29: Thermal Energy Produced *** | B29: MWh | G29: =SUM(C29:F29) -> 0 | H29: =IF(G29>0,G29*1000/$G$21,"-") -> -
A30: Thermal Energy Exported *** | G30: 0 | H30: =IF(G30>0,G30*1000/$G$21,"-") -> -
A31: R1 value (if applicable) | B31: R1
A33: Waste Disposal & Recovery | B33: Unit | C33: Q1 | D33: Q2 | E33: Q3 | F33: Q4 | G33: Year Total | H33: % inputs
A34: APC Residues - produced | B34: tonnes | C34: 1889 | D34: 1598 | E34: 1848 | F34: 1871 | G34: =SUM(C34:F34) -> 7206 | H34: =IF(G34>0,G34/$G$21,"-") -> 0.02526825163
A35: IBA - produced | C35: 12687 | D35: 10353 | E35: 15927 | F35: 13485 | G35: 52452 | H35: =IF(G35>0,G35/$G$21,"-") -> 0.1839259415
A36: Metals recycling | C36: 2821 | D36: 2249 | E36: 2508 | F36: 2403 | G36: =SUM(C36:F36) -> 9981 | H36: 0.03499894803
A37: Other | C37: 0 | D37: 0 | E37: 0 | F37: 0 | G37: =SUM(C37:F37) -> 0 | H37: -
A38: Other | C38: 0 | D38: 0 | E38: 0 | F38: 0 | G38: 0 | H38: -
A39: Other | C39: 0 | D39: 0 | E39: 0 | F39: 0 | G39: 0 | H39: -
A41: Raw Material Usage | B41: Unit | C41: Q1 | D41: Q2 | E41: Q3 | F41: Q4 | G41: Year Total | H41: kg or Ltr /te
A42: Mains Water | B42: ltrs | C42: 10446000 | D42: 9223000 | E42: 8345000 | F42: 8636830 | G42: =SUM(C42:F42) -> 36650830 | H42: =IF(G42>0,G42/$G$21,"-") -> 128.5182341
A43: Other Water | B43: ltrs | G43: 0 | H43: =IF(G43>0,G43/$G$21,"-") -> -
A44: Ammonia | B44: kgs | G44: 0 | H44: -
A45: Urea | B45: kgs | C45: 206223.184 | D45: 135997.5091 | E45: 145336.7482 | F45: 113270.5829 | G45: =SUM(C45:F45) -> 600828.0242 | H45: 2.106837871
A46: Activated Carbon | B46: kgs | C46: 15235.80159 | D46: 12173.52094 | E46: 29738.71494 | F46: 26523.08142 | G46: 83671.11889 | H46: 0.2933975696
A47: Lime / hydrated lime | B47: kgs | C47: 823093.0978 | D47: 644935.7621 | E47: 737312.8954 | F47: 757528.0364 | G47: 2962869.792 | H47: 10.38947258
A48: Fuel oil | B48: ltrs | C48: 64776.97722 | D48: 84329.69156 | E48: 17623 | F48: 76800 | G48: 243529.6688 | H48: 0.8539507286
A49: Gas | B49: cuf | G49: 0
A50: Other | G50: 0
A52: Summary | B52: Line/Unit | C52: Q1 | D52: Q2 | E52: Q3 | F52: Q4 | G52: Year Total | I52: Hrs in year
A53: Availability of waste combustion by line, hrs **** | B53: 1 | C53: 2020.171 | D53: 1482.5286 | E53: 2207.647 | F53: 2109.118 | G53: =SUM(C53:F53) -> 7819.4646 | H53: =+G53/$I$53 -> 0.8926329452 | I53: 8760
B54: 2 | C54: 2086.781 | D54: 1711.8057 | E54: 2154.702 | F54: 1963.136 | G54: 7916.4247 | H54: =+G54/$I$53 -> 0.9037014498
G55: 0 | H55: 0
G56: 0 | H56: 0
G57: =SUM(C57:F57) -> 0 | H57: 0
A58: Overall Availability, mean avg. of all lines, hrs | G58: =AVERAGE(G53:G54) -> 7867.94465 | H58: 0.8981671975
A59: Hours of turbine operations, hrs | B59: 1 | C59: 2147 | D59: 1820.824 | E59: 2207.133 | F59: 2185.17 | G59: 8360.127 | H59: 0.9543523973
A60: Hours of turbine operations, hrs | B60: 2 | G60: 0 | H60: 0
A61: Hours of heat / steam export | G61: 0 | H61: =IF(B61>0,G60/I53,"n/a") -> n/a
A62: Net Calorific Value of waste | B62: MJ/kg | C62: =8811.38932280883/1000 -> 8.811389323 | D62: =9136.84798674453/1000 -> 9.136847987 | E62: =9783.93353753553/1000 -> 9.783933538 | F62: =9299.07050054541/1000 -> 9.299070501 | G62: =AVERAGE(C62:F62) -> 9.257810337
A63: Abnormal Events | B63: qty. | C63: 3 | D63: - | E63: 2 | F63: - | G63: 5 | H63: =IF(G63>0,"yes","no") -> yes
A64: Abnormal operation | B64: hours | C64: 3.5 | D64: - | E64: 2.5 | F64: - | G64: 6 | H64: =+(G64)/I53 -> 0.0006849315068
A65: Permit Breaches | B65: qty. | C65: 1 | D65: - | E65: - | F65: 1 | G65: 2 | H65: =IF(G65>0,"yes","no") -> yes

Sheet Operational Summary
A1: =+'Cover Page'!$B$29 -> Annual Performance Report 2024 | E1: =+'Cover Page'!$B$33 -> Suffolk EfW
A3: Summary of Plant Operations and Maintenance during the reporting year | K3: Notes:
A5: 2024 was a more disrupted year with several unplanned outages (see below) resulting in lower waste throughput than previous years. However due to other improvements being implemented more power was produced. The main outage included planned works to replace upper part of pendant evaporative heating surface in pass 2, refurbish baghouse hoppers, replace a significant amount of refractory in pass 1 and upgrade the materials in the turbine gearbox allowing additional power to be generated (see section on Improvements). When replacing refractory and testing of tubes below it was identified that significant material loss had occurred and multiple repairs were carried out with completed replacement being planned in 2025. | K5: Include summary of key operational and/or maintenance activity undertaken in the year, such as any major component upgrades and/or replacements
A29: Summary of Residue Handling for the reporting year
A31: All IBA produced by the EfW plant is transferred to the IBA recycling plant by conveyor, the IBA recycling plant is operated by Blue Phoenix. The IBA is non-hazardous, as confirmed by weekly analysis of the IBA, and undergoes a mechanical separation process to remove all ferrous and non-ferrous metals leaving an IBA aggregate product. The metals are transferred to other operators for recycling and the IBA is applied to land in construction activities as a replacement for virgin (quarried) aggregate. This is in accordance with Environment Agency Regulatory Position Statement (RPS) 247 "Using unbound IBAA in construction activities". Air Pollution Control (APC) residues is the fly ash from the boiler mixed with dry sorbents such as carbon and lime in the flu gas treatment plant. The APC residue is hazardous and is therefore collected and disposed of to landfill Some additional residues may be produced during cleaning of the boiler during cleaning activities in planned maintenance outages. This boiler ash, often mixed with grit blast residues from the cleaning process, is disposed of to landfill. | K31: Include in here a summary of residue handling regimes and destinations
A54: =+'Cover Page'!C39 -> 2024 | B54: Plant shut-downs
A55: Date | B55: Reason for shut-down | K55: Provide a very brief reason for plant shut-down e.g. "Shut-down prior to major outage"; "Emergency shut-down due to boiler tube leak" There is no need to include periods of hot-standby here (e.g. to clear feed chute hopper blockages). For clinical waste incinerators which require regular shut-downs for boiler cleaning, there is no need to record these here.
A56: 2024-02-07 | B56: L2 Emergency Shutdown for Tube Leak
A57: 2024-02-07 | B57: L1 & TGU Emergency Shutdown for Loss of Vacuum
A58: 2024-03-13 | B58: L1 Emergency Shutdown for Tube Leak
A59: 2024-03-21 | B59: L1 Controlled Shutdown for Fly Ash System Blockage
A60: 2024-04-01 | B60: L1 Planned Shutdown for Outage
A61: 2024-04-12 | B61: L2 Planned Shutdown for Outage
A62: 2024-04-29 | B62: L1 Controlled Shutdown for Fly Ash System Blockage
A63: 2024-07-31 | B63: L1 Controlled Shutdown for ID Fan Motor Replacement
A64: 2024-10-15 | B64: L1 Controlled Shutdown for Grate Repairs
A65: 2024-11-19 | B65: L1 Controlled Shutdown for Grate Repairs
A66: 2024-12-13 | B66: L2 Controlled Shutdown for Tube Leak
A67: 2024-12-25 | B67: L1 & L2 Controlled Shutdown due to Waste Crane Fault

Sheet Perf. Form 1
A1: =+'Cover Page'!C39 -> 2024 | B1: Annual Reporting Performance Form 1
A3: =+'Cover Page'!B31 -> Permit EPR/WP3438HZ | F3: Operator: | G3: =+'Cover Page'!B37 -> SUEZ Recycling & Recovery UK Ltd
A4: Facility: | B4: =+'Cover Page'!B33:I33 -> Suffolk EfW | F4: Form: | G4: Performance 1
A6: Reporting Period from: | D6: 2024-01-01 | F6: to: | G6: 2024-12-31
A8: =+A1 -> 2024 | B8: Annual Reporting of Waste Disposal and Recovery
A9: Waste Description | C9: Disposal Route(s) | E9: Disposal Tonnes | G9: Recovery Tonnes | I9: % / tonne of waste incinerated
A10: 1) Hazardous Wastes
A11: APC Residues | E11: 7206 | I11: =IF((E11+G11)>0,(E11+G11)/'Operational Data'!$G$21, "-") -> 0.02526825163
A12: IBA | I12: =IF((E12+G12)>0,(E12+G12)/'Operational Data'!$G$21, "-") -> -
I13: =IF((E13+G13)>0,(E13+G13)/'Operational Data'!$G$21, "-") -> -
I14: =IF((E14+G14)>0,(E14+G14)/'Operational Data'!$G$21, "-") -> -
A15: Total Hazardous Waste | E15: =SUM(E11:F14) -> 7206 | G15: =SUM(G11:H14) -> 0 | I15: =IF((E15+G15)>0,(E15+G15)/'Operational Data'!$G$21, "-") -> 0.02526825163
A17: 2) Non-Hazardous Wastes
A18: IBA | G18: ='Operational Data'!G35 -> 52452 | I18: =IF((E18+G18)>0,(E18+G18)/'Operational Data'!$G$21, "-") -> 0.1839259415
A19: Ferrous Metal | G19: 6564.2 | I19: =IF((E19+G19)>0,(E19+G19)/'Operational Data'!$G$21, "-") -> 0.02301774318
A20: Process Water | I20: =IF((E20+G20)>0,(E20+G20)/'Operational Data'!$G$21, "-") -> -
A21: Non-Ferrous Metal | G21: 3416.8 | I21: =IF((E21+G21)>0,(E21+G21)/'Operational Data'!$G$21, "-") -> 0.01198120485
I22: =IF((E22+G22)>0,(E22+G22)/'Operational Data'!$G$21, "-") -> -
A23: Total Non-Hazardous Waste | E23: =SUM(E18:F22) -> 0 | G23: =SUM(G18:H22) -> 62433 | I23: =IF((E23+G23)>0,(E23+G23)/'Operational Data'!$G$21, "-") -> 0.2189248895
A24: TOTAL WASTE | E24: =+E23+E15 -> 7206 | G24: =+G23+G15 -> 62433 | I24: =IF((E24+G24)>0,(E24+G24)/'Operational Data'!$G$21, "-") -> 0.2441931412
A26: Operator’s comments :
A31: =+A1 -> 2024 | B31: Annual Reporting of Water and Other Raw Material Usage
A32: Raw Material | E32: Usage | G32: Unit | H32: Specific Usage | J32: Unit
A33: Mains Water | E33: =+'Operational Data'!G42/1000 -> 36650.83 | G33: m3 | H33: =IF(E33>0,E33/'Operational Data'!$G$21,"-") -> 0.1285182341 | J33: m3/te
A34: Total Water | E34: =+'Operational Data'!G43+'Operational Data'!G42/1000 -> 36650.83 | G34: m3 | H34: =IF(E34>0,E34/'Operational Data'!$G$21,"-") -> 0.1285182341 | J34: m3/te
A35: Urea / Ammonia | E35: =+'Operational Data'!G45 -> 600828.0242 | G35: kg | H35: =IF(E35>0,E35/'Operational Data'!$G$21,"-") -> 2.106837871 | J35: kg/te
A36: Activated Carbon | E36: =+'Operational Data'!G46 -> 83671.11889 | G36: kg | H36: =IF(E36>0,E36/'Operational Data'!$G$21,"-") -> 0.2933975696 | J36: kg/te
A37: Lime / hydrated lime / Sodium Bicarb. | E37: =+'Operational Data'!G47 -> 2962869.792 | G37: kg | H37: =IF(E37>0,E37/'Operational Data'!$G$21,"-") -> 10.38947258 | J37: kg/te
A39: Operator’s comments :
A43: =+A31 -> 2024 | B43: Annual Reporting of other performance indicators
A44: Parameter | C44: Results by Line
C45: A1 | D45: A2 | E45: A3 | F45: A4 | G45: A5 | I45: Turbine 1 | J45: Turbine 2
A46: Operating hours for the year, hours | C46: 7819 | D46: 7916
A47: Number of periods of abnormal operation, qty. | C47: 3 | D47: 2
A48: Cumulative hours of abnormal operation for this year, hours | C48: 3.5 | D48: 2.5
A50: Operator’s comments :
A54: Signed: | G54: Date:

Sheet Energy Form 1
A1: =+'Cover Page'!C39 -> 2024 | B1: Annual Reporting of Energy Usage/Export
A3: =+'Cover Page'!B31 -> Permit EPR/WP3438HZ | F3: Operator: | G3: =+'Cover Page'!B37 -> SUEZ Recycling & Recovery UK Ltd
A5: Facility: | B5: =+'Cover Page'!B33:I33 -> Suffolk EfW | F5: Form: | G5: Energy 1
A7: Reporting Period from: | D7: =+'Perf. Form 1'!D6:E6 -> 2024-01-01 | F7: to: | G7: =+'Perf. Form 1'!G6:H6 -> 2024-12-31
A9: Energy Source | D9: Energy Usage | F9: Unit | G9: Specific Usage (KWh/tonne incinerated
A10: Electricity Produced | D10: =+'Operational Data'!G24 -> 207405.3723 | F10: MWh | G10: =+'Operational Data'!H24 -> 727.2788146
A11: Electricity Imported | D11: =+'Operational Data'!G27 -> 332.695384 | F11: MWh | G11: =+'Operational Data'!H27 -> 1.166615415
A12: Electricity Exported | D12: =+'Operational Data'!G25 -> 184401.7856 | F12: MWh | G12: =+'Operational Data'!H25 -> 646.6154203
A13: Gas Oil | D13: ='Operational Data'!G48*0.85/1000 -> 207.0002185 | F13: tonnes | G13: =(D13*42800*1000*(1/3600))/'Operational Data'!G21 -> 8.629646529
A14: Steam/hot water exported | D14: =+'Operational Data'!G30 -> 0 | F14: GWh | G14: =+'Operational Data'!H30 -> -
A18: Operator’s comments :
A19: Density value of 845 kg.m-3 used to convert gas oil litres to tonnes. Net Calorific Value (NCV) of 42,800 kJ.kg-1 used for gas oil
A29: Signed: | G29: Date:

Sheet Permit Compliance
A1: =+'Cover Page'!$B$29 -> Annual Performance Report 2024 | E1: =+'Cover Page'!$B$33 -> Suffolk EfW
A3: Summary of Permit Compliance
A5: Compliance with permit limits for continuously monitored pollutants
A7: The plant met its emission limits as shown in the table below:
A8: Substance | C8: Percentage time compliant during operationNote 1 | L8: Notes:
C9: Half-hourly limit | F9: Daily limit | L9: Note 1: Please report to 2 decimal places, i.e. xx.xx% Note 2: Please enter into this table any permit non-compliances that the EA has given a CCS score for. Please also enter any other non-compliances which you have notified to the EA (e.g. ELV exceedances) but which have not yet been assessed by the EA. There is no need to enter any notifications which were subsequently assessed by the EA not to be permit breaches. Note 3: Please enter information here (rather than just referencing the notifications that were sent to the EA) including where relevant the incineration line reference, pollutant and value of the measured result for any ELV exceedances.
A10: Particulates | C10: 1 | F10: 1
A11: Oxides of nitrogen | C11: 1 | F11: 1
A12: Sulphur dioxide | C12: 0.9999 | F12: 1
A13: Carbon monoxide | C13: 100.00 % or 100.00% 95% of 10-min averages | F13: 1
A14: Total organic carbon | C14: 0.9999 | F14: 1
A15: Hydrogen chloride | C15: 1 | F15: 1
A16: Hydrogen fluoride | C16: 1 | F16: 1
C17: 1 | F17: 1
A19: Summary of non-compliances under the permit Note 2
A20: Date | B20: Summary of non-compliance Note 3 | D20: Reason | G20: Measures taken to prevent reoccurrence | H20: CCS score if applicable*
H21: Impact | I21: Root cause
A22: 2024-03-20 | B22: Breach - SO2 half hourly average exceedance on Line 1 | D22: High SO2 in waste. Raw gas analyser not available. | G22: Mixing protocols to be refreshed and new raw gas analyser to be installed. | H22: CCS4 | I22: N/A
A23: 2024-10-31 | B23: Breach - TOC exceedance on Line 1 | D23: Waste hopper blockage leading to a period of poor combustion | G23: Toolbox talk for operations teams relating to hopper blockages and waste feeding. Review of appropriate actions when a blockage occurs.
A27: *If the Environment Agency (EA) has given a Compliance Classification Scheme (CCS) score due to a permit non-compliance it should be entered here (CCS4 = No impact; CCS3 = Minor impact; CCS2 = Significant impact; CCS1 = Major impact). If the EA has not yet assessed a non-compliance which you have notified to them, these columns should be left blank.
A29: Summary of any complaints received and actions to taken to resolve them.
A30: Date | B30: Summary of complaint [including Line/Reference] | E30: Reason (including whether substantiated by the operator or the EA) | H30: Measures taken to prevent reoccurrence

Sheet Improvements
A1: =+'Cover Page'!$B$29 -> Annual Performance Report 2024 | E1: =+'Cover Page'!$B$33 -> Suffolk EfW
A3: Summary of Plant Improvements
A5: Summary of any efficiency improvements that have been completed within the year.
A6: In Spring 2024 outage the turbine gearbox was upgraded to allow additional power to be generated. This has improved the efficiency of the plant as under almost all operating conditions no steam is bypassing the turbine and all of the energy in the waste is being used to generate power.
A16: Summary of any permit improvement conditions that have been completed within the year and the resulting environmental benefits.
A17: IC1 report submitted 17/01/2024 regarding the NOx emission trials IC1: "The operator shall perform a study to determine the extent to which the operation of the current systems in place at the plant to minimise NOx emissions can be further optimised such that emissions are reduced as far as possible below 180 mg/Nm3 as a daily average, without significantly increasing emissions of other pollutants or having a significant negative effect on plant operation, reliability or bottom ash quality." IC4 submitted 26/11/2024 and resubmitted with minor amendments 09/12/2024 IC4 "The operator shall submit a Dust Management Plan (DMP) to the Environment Agency for approval."
A27: Summary of any changes to the plant or operating techniques which required a variation to the permit and a summary of the resulting environmental impact.
A28: Not applicable
A38: Summary of any other improvements made to the plant or planned to be made and a summary of the resulting environmental benefits.

Sheet Public Liasion
A1: =+'Cover Page'!$B$29 -> Annual Performance Report 2024 | E1: =+'Cover Page'!$B$33 -> Suffolk EfW
A3: Details of Public & Stakeholder Liaison
A5: Summary of events held during the reporting year.
A6: Date | C6: Description
A7: 2024-05-01 | C7: Suffolk Show. The Suffolk show is a 2-day event where SUEZ join the wider Suffolk Waste Partnership to engage with members of the public about recycling and what happens to their black bin and other non-recyclable waste.
A9: Throughout the year | C9: Tours: - 42 adult tours/open day tours and 42 school/community group tours totalling 1,016 visitors. Outreach projects: - 20 events involving 617 people. (10 children's outreach events, 3 careers events, 3 environmental events for mixed groups, 4 outreach talks for adults)
A11: 2024-09-01 | C11: Heritage Open Days - an annual, national event in which we host tours on a Saturday in September. 2 tours attended by 35 visitors
A16: List of events planned for next year
A17: Date | C17: Description
A18: May 2025 | C18: Suffolk Show
A20: Summer 2025 (date to be confirmed) | C20: Site’s 10th anniversary celebrations and official opening of refurbished visitor centre
A22: Throughout the year | C22: Adult tours and school/community group tours
A24: Throughout the year | C24: Outreach
A26: Throughout the year | C26: Careers events
A29: If you wish to be involved in the public liaison programme, please contact jennifer.steytler@suez.com / Siobhan.o'dell@suez.com

Sheet CO2 N2O
A1: =+'Cover Page'!$B$29 -> Annual Performance Report 2024 | C1: =+'Cover Page'!$B$33 -> Suffolk EfW
A3: Carbon dioxide emissions and biogenic content of waste inputs | F3: Notes:
A5: Carbon dioxide emissions (all types of plant)
B6: Annual mass of carbon dioxide released | C6: tonnes | D6: 280626.9487
B7: Annual mass of carbon dioxide released per tonne of waste burned | C7: t CO2 / t waste | D7: =D6/'Operational Data'!G21 -> 0.9840344649
B8: Annual mass of carbon dioxide released per MWh of energy exported | C8: t CO2 / MWh export | D8: =D6/'Operational Data'!G25 -> 1.521823381
B9: Description of how annual carbon dioxide mass emission has been calculated. See Note 1 | C9: CEMs CO2, O2 and Flow Measurements | F9: Note 1: All permits require operators to continuously monitor CO2 to EN14181 and flow to BS EN 16911-2 (unless otherwise agreed in writing). Operators must therefore use the results from these instruments to calculate their annual CO2 emissions. Where an operator does not have a flow meter calibrated to BS EN 16911-2, the averaged flow measurement from that year's periodic monitoring can be used instead. If the plant does not have calibrated CO2 CEMS, a suitably justified emissions factor can be used.
A10: Nitrous oxide emissions (only plants which use ammonia or urea to abate NOx emissions)
B11: Annual mass emissions of nitrous oxide | C11: tonnes N2O | D11: 8.519
B12: Description of how annual nitrous oxide mass emission has been calculated See Note 2 | C12: CEMs CO2, O2 and Flow Measurements | F12: Note 2: All permits require operators to continuously monitor N2O to EN14181 and flow to BS EN 16911-2, unless otherwise agreed in writing. Operators must therefore use the results from these instruments to calculate their annual N2O emissions. Where an operator does not have a flow meter calibrated to BS EN 16911-2, the averaged flow measurement from periodic monitoring can be used instead. If the plant does not have calibrated N2O CEMS, data from periodic monitoring or a suitably justified emissions factor can be used instead.
A13: Total annual carbon dioxide + nitrous oxide emissions. See Note 3. | C13: tonnes CO2e | D13: =D11*265+D6 -> 282884.4837 | F13: Note 3: Total annual carbon dioxide and nitrous oxide emissions reported as carbon dioxide equivalent where 1 tonne nitrous oxide is equivalent to 265 tonnes carbon dioxide.
A14: Biogenic CO2 emissions (See Note 4) | F14: Note 4: Only plants combusting residual municipal waste, refuse derived fuel or solid recovered fuel need complete this section.
B15: Percentage of total carbon dioxide emissions arising from biogenic waste | C15: % | D15: 0.5417
B16: No. of measurements undertaken | C16: Number | D16: 1
B17: Description of how percentage biogenic carbon dioxide emissions have been measured or calculated. See Note 5 | C17: Based on annual waste sampling and analysis to determine biogenic fraction | F17: Note 5: The results from C14 sampling should be used if this is carried out at the plant (either via an installed sampler or from spot samples). Otherwise, as an approximation (and in lieu of any more accurate metrics which may be developed in future), the measured or estimated biogenic fraction by net calorific value (see Note 6) can be assumed to be the same as the biogenic CO2 fraction of the total CO2 emissions from the plant.
A18: Biogenic fraction of waste feedstock (See Note 4)
B19: Yearly average biogenic percentage of the waste by net calorific value (NCV) | C19: % | D19: 0.5417
B20: Description of how biogenic percentage (by NCV) has been calculated or estimated. See Note 6 | C20: Based on annual waste sampling and analysis to determine biogenic fraction | F20: Note 6: If C14 sampling is carried out at the plant, the methodology set out in the embedded document entitled "Renewable Energy Association Energy Content of Fuels - Description of Method" embedded below can be used to calculate the biogenic percentage by net calorific value. Otherwise, data from waste sampling or BIOMA software can be used; or if none of these are available, an estimated figure with justification or a figure assumed on the basis of up-to-date industry data can be used.
B21: Yearly average biogenic percentage of the waste by mass | C21: % | D21: 0.5417
B22: If waste sampling undertaken, no. of samples used to ascertain average biogenic percentages above | C22: Number | D22: 1
B23: Description of how biogenic percentage (by mass) has been calculated or estimated. See Note 7 | C23: Based on annual waste sampling and analysis to determine biogenic fraction | F23: Note 7: Where available, data from waste sampling should be used; otherwise, an estimated figure with justification can be used, or a figure assumed on the basis of up-to-date industry data.
B25: Comments:

Sheet Residue Quality
A1: =+'Cover Page'!$B$29 -> Annual Performance Report 2024 | E1: =+'Cover Page'!$B$33 -> Suffolk EfW
A3: Residue Quality Monitoring Requirements
A5: Summary of monitoring undertaken and compliance
A6: Routine samples for quarterly IBA analysis were taken on the 26/01/2024, 09/04/2024, 13/08/2024 and 16/10/2024
A8: There were no issues identified by the analysis and all results for TOC were below the permit limit. LOI analysis is not required as TOC analysis is provided.
A13: Commentary on any specific events
A14: Date & Event | C14: Description
A27: Residue Quality Monitoring Results
A28: Parameter (unit) | C28: Limit* | D28: Normal Operation
D29: Bottom ash | F29: APC Residues
A30: Loss on Ignition (average %) | C30: <5% | D30: N/A
A31: Total Organic Carbon (average %) | C31: <3% | D31: =AVERAGE(1.81, 1.87, 0.89, 1.3) -> 1.4675
A32: No. of Assessments Undertaken | C32: --- | D32: 4 | F32: 4
A33: No. of Hazardous Results | C33: --- | D33: 0
A34: * The permit will specify a limit of either 5% loss on ignition or 3% total organic carbon. If both are measured anyway, please enter the results here, even where the limit does not apply.
A36: Comments :
A37: 26/01/2024 TOC = 1.81 09/04/2024 TOC = 1.87 13/08/2024 TOC = 0.89 16/10/2024 TOC = 1.3 Average TOC = 1.47 %

Sheet Water
A1: =+'Cover Page'!$B$29 -> Annual Performance Report 2024 | E1: =+'Cover Page'!$B$33 -> Suffolk EfW
A3: Emissions to Water
A5: Summary of monitoring undertaken and compliance
A6: There are no discharges to water regulated by the permit. The discharge point S1 has a volume limit of 24m3 per day as detailed in table S3.4. Compliance with the discharge volume limit is reported to the Environment Agency on a quarterly basis in line with permit requirements.
A13: Commentary on any specific events
A14: Date & Event | C14: Description
A15: Discharge breaches: 11/12/2024, 13/12/2024, 28/12/2024, 31/12/2024 | C15: 11/12/2024 - 27.1 m3 13/12/2024 - 24.1 m3 28/12/2024 - 24.1 m3 31/12/2024 - 26.0 m3
A22: Emissions to Water / Sewer
A23: Parameter | D23: Monitoring Frequency | F23: Limit | G23: Target | H23: Max. | I23: Average
A24: Water Volume (m3/day) to Sewer | D24: Continuous | F24: 24m3/day | G24: 0 | H24: 27.1 | I24: 4.8

Sheet Air (periodic)
A1: =+'Cover Page'!$B$29 -> Annual Performance Report 2024 | E1: =+'Cover Page'!$B$33 -> Suffolk EfW
A3: Emissions to Air (periodically monitored)
A5: Summary of monitoring undertaken, standards used and compliance | K5: Notes:
A6: The compliance monitoring visists were carried out during March and September 2024. There were no non-compliances identified during either visit. | K6: Template may require adjustment for any bespoke monitoring requirements of permit - please also check that all default ELV values, reference periods and the stated oxygen reference value match those for your plant, and edit if necessary!
A9: Results of emissions to air that are periodically monitored - oxygen reference 11%
A10: Substance | C10: Ref. Period | D10: Emission Limit Value | F10: Average | K10: User to add additional tables as necessary, depending on whether quarterly or bi-annual reporting is required for the compliance year
F11: A1 | G11: A2 | H11: A3 | I11: A4 | J11: A5
A12: Hydrogen fluoride | C12: 1 hr | D12: 1 mg/m3 | F12: =AVERAGE(0.36, 0.04) -> 0.2 | G12: =AVERAGE(0.05, 0.08) -> 0.065
A13: Cd and Tl and their compounds | C13: 0.5-8hrs | D13: 0.02 mg/m3 | F13: =AVERAGE(0.0014, 0.0022) -> 0.0018 | G13: =AVERAGE(0.0015, 0.002) -> 0.00175
A14: Hg and its compounds | C14: 0.5-8hrs | D14: 0.02 mg/m3 | F14: =AVERAGE(0.0015, 0.0012) -> 0.00135 | G14: =AVERAGE(0.003, 0.0009) -> 0.00195
A15: Sb, As, Pb, Cr, Co, Cu, Mn, Ni, V and their compounds | C15: 0.5-8hrs | D15: 0.3 mg/m3 | F15: =AVERAGE(0.05, 0.042) -> 0.046 | G15: =AVERAGE(0.028, 0.07) -> 0.049
A16: Dioxins & Furans (I-TEQ) | C16: 6-8hrs | D16: 0.06 ng/m3 | F16: =AVERAGE(0.0084, 0.0014) -> 0.0049 | G16: =AVERAGE(0.041, 0.0017) -> 0.02135
A17: PCBs (WHO-TEQ Humans / Mammals) | C17: 6-8hrs | D17: None set ng/m3 | F17: =AVERAGE(0.000237, 0.002) -> 0.0011185 | G17: =AVERAGE(0.003, 0.000039) -> 0.0015195
A18: PCBs (WHO-TEQ Fish) | C18: 6-8hrs | D18: None set ng/m3 | F18: =AVERAGE(0.00012, 0.00013) -> 0.000125 | G18: =AVERAGE(0.0001, 0.000004) -> 5.2e-05
A19: PCBs (WHO-TEQ Birds) | C19: 6-8hrs | D19: None set ng/m3 | F19: =AVERAGE(0.000801, 0.0088) -> 0.0048005 | G19: =AVERAGE(0.0012, 0.006) -> 0.0036
A20: Dioxins & Furans (WHO-TEQ Humans / Mammals) | C20: 6-8hrs | D20: None set ng/m3 | F20: =AVERAGE(0.0012, 0.0066) -> 0.0039 | G20: =AVERAGE(0.0427, 0.0016) -> 0.02215
A21: Dioxins & Furans (WHO-TEQ Fish) | C21: 6-8hrs | D21: None set ng/m3 | F21: =AVERAGE(0.008, 0.0012) -> 0.0046 | G21: =AVERAGE(0.0019, 0.0484) -> 0.02515
A22: Dioxins & Furans (WHO-TEQ Birds) | C22: 6-8hrs | D22: None set ng/m3 | F22: =AVERAGE(0.0034, 0.02) -> 0.0117 | G22: =AVERAGE(0.0761, 0.0029) -> 0.0395
A23: Anthanthrene | C23: 6-8hrs | D23: None set µg/m3 | F23: 0.0019 | G23: 0.002
A24: Benzo(a)anthracene | C24: 6-8hrs | D24: None set µg/m3 | F24: 0.0035 | G24: 0.002
A25: Benzo(a)pyrene | C25: 6-8hrs | D25: None set µg/m3 | F25: 0.0024 | G25: 0.002
A26: Benzo(b)fluoranthene | C26: 6-8hrs | D26: None set µg/m3 | F26: 0.0027 | G26: 0.002
A27: Benzo(b)naptho(2,1-d) thiophene | C27: 6-8hrs | D27: None set µg/m3 | F27: 0.0019 | G27: 0.002
A28: Benzo(c)phenanthrene | C28: 6-8hrs | D28: None set µg/m3 | F28: 0.0019 | G28: 0.002
A29: Benzo(ghi)perylene | C29: 6-8hrs | D29: None set µg/m3 | F29: 0.0027 | G29: 0.002
A30: Benzo(k)fluoranthene | C30: 6-8hrs | D30: None set µg/m3 | F30: 0.0019 | G30: 0.002
A31: Cholanthrene | C31: 6-8hrs | D31: None set µg/m3 | F31: 0.0019 | G31: 0.002
A32: Chrysene | C32: 6-8hrs | D32: None set µg/m3 | F32: 0.0036 | G32: 0.002
A33: Cyclopenta(cd)pyrene | C33: 6-8hrs | D33: None set µg/m3 | F33: 0.0019 | G33: 0.002
A34: Dibenzo(ai)pyrene | C34: 6-8hrs | D34: None set µg/m3 | F34: 0.0019 | G34: 0.002
A35: Dibenzo(ah)anthracene | C35: 6-8hrs | D35: None set µg/m3 | F35: 0.0019 | G35: 0.002
A36: Fluoranthene | C36: 6-8hrs | D36: None set µg/m3 | F36: 0.0451 | G36: 0.02
A37: Indeno(123-cd) pyrene | C37: 6-8hrs | D37: None set µg/m3 | F37: 0.0019 | G37: 0.002
A38: Naphthalene | C38: 6-8hrs | D38: None set µg/m3 | F38: 1.11 | G38: 0.37
A39: Comments :
A40: The average result is calculated from the reproted values for the H1 and H2 compliance monitoring campaigns. Where results are reported at the laboratory limit of detection the < qualifier is removed for the calculation of the average emission as a conservative measure. Where the average has been calaculated in this way the reported value is highlighted bold.

Sheet Air (CEMS)
A1: =+'Cover Page'!$B$29 -> Annual Performance Report 2024 | I1: =+'Cover Page'!$B$33 -> Suffolk EfW
A3: Emissions to Air (continuously monitored)
N4: Notes:
A5: Summary of monitoring undertaken, standards used and compliance | N5: Template may require adjustment for any bespoke monitoring requirements of permit
A6: The CEMS set up comprises a multigas analyser, FID analyser and oxygen probe for extractive sampling where flue gases are drawn continuously via a heated line to the analysers in the CEMS room for each incineration line. In situ sampling i.e. where the probes are installed directly into the flue gas flow in the stack is for the dust probes only. The set up for the duty analysers is mirrored by the standby analysers. The standby analysers can be switched between incineration Lines 1 and 2 as required. Continuous monitoring is provided by the CEMS as required by the permit. The CEMS are installed in accordance with EN14181 and relevant Environment Agency guidance. | N6: Please check that all default ELV values match those for your plant and edit if necessary!
N7: Report to 1 decimal place
A11: Results of emissions to air that are continuously monitored (maximum and average values for each line) - oxygen reference 11%
A12: Substance | B12: Reference Period | C12: Emission Limit Value | D12: A1 | F12: A2 | H12: A3 | J12: A4 | L12: A5
D13: Max. | E13: Avg. | F13: Max. | G13: Avg. | H13: Max. | I13: Avg. | J13: Max. | K13: Avg. | L13: Max. | M13: Avg.
A14: Oxides of nitrogen | B14: Daily mean | C14: 180 mg/m3 | D14: =NOx!$O$19 -> 174 | E14: =NOx!$N$19 -> 164.1259038 | F14: =NOx!$O$34 -> 173.8 | G14: =NOx!$N$34 -> 165.2421693
B15: ½ hourly mean | C15: 400 mg/m3 | D15: =NOx!$M$19 -> 231.4169464 | E15: =NOx!$L$19 -> 163.6024559 | F15: =NOx!$M$34 -> 291 | G15: =NOx!$L$34 -> 165.2206349
A16: Particulates | B16: Daily mean | C16: 5 mg/m3 | D16: =Particulates!$O$19 -> 2.2 | E16: =Particulates!$N$19 -> 1.187530354 | F16: =Particulates!$O$34 -> 2.3 | G16: =Particulates!$N$34 -> 1.403090287
B17: ½ hourly mean | C17: 30 mg/m3 | D17: =Particulates!$M$19 -> 3.2 | E17: =Particulates!$L$19 -> 1.208333333 | F17: =Particulates!$M$34 -> 3.5 | G17: =Particulates!$L$34 -> 1.408333333
A18: Total Organic Carbon | B18: Daily mean | C18: 10 mg/m3 | D18: =TOC!$O$19 -> 0.7 | E18: =TOC!$N$19 -> 0.2799195066 | F18: =TOC!$O$34 -> 4.1 | G18: =TOC!$N$34 -> 0.3636394192
B19: ½ hourly mean | C19: 20 mg/m3 | D19: =TOC!$M$19 -> 68.7 | E19: =TOC!$L$19 -> 0.3166666667 | F19: =TOC!$M$34 -> 64 | G19: =TOC!$L$34 -> 0.375
A20: Hydrogen chloride | B20: Daily mean | C20: 8 mg/m3 | D20: =HCl!$O$19 -> 6.23371315 | E20: =HCl!$N$19 -> 3.431982876 | F20: =HCl!$O$34 -> 6.4 | G20: =HCl!$N$34 -> 3.365316209
B21: ½ hourly mean | C21: 60 mg/m3 | D21: =HCl!$M$19 -> 82.60347748 | E21: =HCl!$L$19 -> 3.372174656 | F21: =HCl!$M$34 -> 28.04 | G21: =HCl!$L$34 -> 3.01544464
A22: Sulphur dioxide | B22: Daily mean | C22: 40 mg/m3 | D22: ='SO2'!$O$19 -> 38.28635406 | E22: ='SO2'!$N$19 -> 25.66080889 | F22: ='SO2'!$O$34 -> 33 | G22: ='SO2'!$N$34 -> 23.9702505
B23: ½ hourly mean | C23: 200 mg/m3 | D23: ='SO2'!$M$19 -> 246.9086456 | E23: ='SO2'!$L$19 -> 25.53918604 | F23: ='SO2'!$M$34 -> 138.4 | G23: ='SO2'!$L$34 -> 23.8977488
A24: Carbon monoxide | B24: Daily mean | C24: 50 mg/m3 | D24: ='CO 95% 10 min'!Q20 -> 12.6 | E24: ='CO 95% 10 min'!P20 -> 2.64 | F24: ='CO 95% 10 min'!Q35 -> 12.3 | G24: ='CO 95% 10 min'!P35 -> 3.064166667
B25: 95%ile 10-min avg | C25: 150 mg/m3 | D25: =MAX('CO 95% 10 min'!M8:M19) -> 1472.8 | E25: ='CO 95% 10 min'!M20 -> 213.7716667 | F25: =MAX('CO 95% 10 min'!M23:M34) -> 549.7 | G25: ='CO 95% 10 min'!M35 -> 88.225
A26: Ammonia | B26: Daily mean | C26: 15 mg/m3 | D26: ='NH3'!$O$19 -> 1.3 | E26: ='NH3'!$N$19 -> 0.6283333333 | F26: ='NH3'!$O$34 -> 2.4 | G26: ='NH3'!$N$34 -> 0.745
A28: Comments :

Sheet HCl
A1: =+'Cover Page'!$B$29 -> Annual Performance Report 2024 | E1: =+'Cover Page'!$B$33 -> Suffolk EfW
A3: Monitoring of Hydrogen Chloride emissions | D3: Whole Installation | G3: See Notes in Cell Q3 | J3: =+A3 -> Monitoring of Hydrogen Chloride emissions | N3: Per Combustion Line | Q3: Notes:
Q4: User to add logic to complete Whole installation, Table A5:G18. From the data in Per Combustion Line, Table J6:O79, subject to No. of lines installed
A5: =+'Cover Page'!C39 -> 2024 | B5: 1/2 Hourly Reference Periods | E5: Daily Reference Periods
A6: mg/Nm3 | B6: 1/2 hourly HCl ELV | C6: Monthly mean of half-hourly averages | D6: Highest half- hourly average | E6: Daily HCl ELV | F6: Monthly mean of daily averages | G6: Highest daily average | J6: =+A5 -> 2024 | K6: mg/Nm3 | L6: Monthly mean of half-hourly averages | M6: Highest half- hourly average | N6: Monthly mean of daily averages | O6: Highest daily average
A7: Jan | B7: 60 | C7: =AVERAGE(L7,L22,L37,L52,L67) -> 1.502741935 | D7: =MAX(M7,M22,M37,M52,M67) -> 5.18 | E7: 8 | F7: =AVERAGE(N7,N22,N37,N52,N67) -> 1.887419355 | G7: =MAX(O7,O22,O37,O52,O67) -> 2.54 | J7: A1 | K7: Jan | L7: 1.887419355 | M7: 5.18 | N7: 1.887419355 | O7: 2.54
A8: Feb | B8: 60 | C8: =AVERAGE(L8,L23,L38,L53,L68) -> 2.087531034 | D8: =MAX(M8,M23,M38,M53,M68) -> 8.45 | E8: 8 | F8: =AVERAGE(N8,N23,N38,N53,N68) -> 1.903461538 | G8: =MAX(O8,O23,O38,O53,O68) -> 4.8 | K8: Feb | L8: 1.855862069 | M8: 8.45 | N8: 1.903461538 | O8: 4.34
A9: Mar | B9: 60 | C9: 1.837152246 | D9: 62.84796143 | E9: 8 | F9: =AVERAGE(N9,N24,N39,N54,N69) -> 2 | G9: 4.919220924 | K9: Mar | L9: 2.023669586 | M9: 62.84796143 | N9: 2 | O9: 3.324054003 | Q9: Whole Installation table A5:G18:
A10: Apr | B10: 60 | C10: 2.42547619 | D10: 28.04 | E10: 8 | F10: 3.466666667 | G10: 6.4 | K10: Apr | L10: 2.764285714 | M10: 9.96 | N10: 3.466666667 | O10: 5.17 | Q10: Mean: for 1/2 hourly and daily periods calculate mean of values across all operational combustion lines for the month
A11: May | B11: 60 | C11: 2.966774194 | D11: 12.69 | E11: 8 | F11: 3.267741935 | G11: 5.69 | K11: May | L11: 3.253548387 | M11: 12.69 | N11: 3.267741935 | O11: 5.69
A12: Jun | B12: 60 | C12: 3.260816193 | D12: 16.84477234 | E12: 8 | F12: 3.18 | G12: 4.950125217 | K12: Jun | L12: 3.182923543 | M12: 16.84477234 | N12: 3.18 | O12: 4.950125217
A13: Jul | B13: 60 | C13: 3.661224606 | D13: 16.27549744 | E13: 8 | F13: 3.680645161 | G13: 4.973127842 | K13: Jul | L13: 3.683177969 | M13: 9.332403183 | N13: 3.680645161 | O13: 4.973127842 | Q13: Maximum: for 1/2 hourly and daily periods use the highest value across all operational combustion lines for the month
A14: Aug | B14: 60 | C14: 4.804545719 | D14: 82.60347748 | E14: 8 | F14: 5.032258065 | G14: 5.886640072 | K14: Aug | L14: 5.032477479 | M14: 82.60347748 | N14: 5.032258065 | O14: 5.886640072
A15: Sep | B15: 60 | C15: 4.749840406 | D15: 8.45157814 | E15: 8 | F15: 4.883333333 | G15: 5.364421844 | K15: Sep | L15: 4.883548972 | M15: 8.45157814 | N15: 4.883333333 | O15: 5.364421844
A16: Oct | B16: 60 | C16: 4.207858568 | D16: 10.42486954 | E16: 8 | F16: 4.444047604 | G16: 5.180305004 | K16: Oct | L16: 4.446701426 | M16: 10.42486954 | N16: 4.444047604 | O16: 5.180305004
A17: Nov | B17: 60 | C17: 3.600200528 | D17: 13.82889938 | E17: 8 | F17: 3.768220849 | G17: 5.09946394 | K17: Nov | L17: 3.819265433 | M17: 13.82889938 | N17: 3.768220849 | O17: 5.09946394
A18: Dec | B18: 60 | C18: 3.22155416 | D18: 17.81976128 | E18: 8 | F18: 3.27 | G18: 6.23371315 | K18: Dec | L18: 3.633215941 | M18: 17.81976128 | N18: 3.67 | O18: 6.23371315
K19: Annual | L19: =AVERAGE(L7:L18) -> 3.372174656 | M19: =MAX(M7:M18) -> 82.60347748 | N19: =AVERAGE(N7:N18) -> 3.431982876 | O19: =MAX(O7:O18) -> 6.23371315
J21: =+A5 -> 2024 | K21: mg/Nm3 | L21: Monthly mean of half-hourly averages | M21: Highest half- hourly average | N21: Monthly mean of daily averages | O21: Highest daily average
J22: A2 | K22: Jan | L22: 1.118064516 | M22: 5.12 | N22: 1.887419355 | O22: 1.84
K23: Feb | L23: 2.3192 | M23: 8.36 | N23: 1.903461538 | O23: 4.8
K24: Mar | L24: 1.650634906 | M24: 8.962322235 | N24: 2 | O24: 4.919220924
K25: Apr | L25: 2.086666667 | M25: 28.04 | N25: 3.466666667 | O25: 6.4
K26: May | L26: 2.68 | M26: 9.52 | N26: 3.267741935 | O26: 4.62
K27: Jun | L27: 3.338708843 | M27: 7.466076851 | N27: 3.18 | O27: 4.891746998
K28: Jul | L28: 3.639271243 | M28: 16.27549744 | N28: 3.680645161 | O28: 4.906105042
K29: Aug | L29: 4.576613959 | M29: 15.53358746 | N29: 5.032258065 | O29: 5.292687893
K30: Sep | L30: 4.616131839 | M30: 6.831836224 | N30: 4.883333333 | O30: 5.01654911
K31: Oct | L31: 3.969015709 | M31: 7.57320118 | N31: 4.444047604 | O31: 4.799264908
K32: Nov | L32: 3.381135623 | M32: 9.570857048 | N32: 3.768220849 | O32: 5.01556921
K33: Dec | L33: 2.809892379 | M33: 6.413043976 | N33: 2.87 | O33: 4.781169891
K34: Annual | L34: =AVERAGE(L22:L33) -> 3.01544464 | M34: =MAX(M22:M33) -> 28.04 | N34: =AVERAGE(N22:N33) -> 3.365316209 | O34: =MAX(O22:O33) -> 6.4
J36: =+A5 -> 2024 | K36: mg/Nm3 | L36: Monthly mean of half-hourly averages | M36: Highest half- hourly average | N36: Monthly mean of daily averages | O36: Highest daily average
J37: A3 | K37: Jan
K38: Feb
K39: Mar
K40: Apr
K41: May
K42: Jun
K43: Jul
K44: Aug
K45: Sep
K46: Oct
K47: Nov
A48: Comments : | K48: Dec
A49: Some erroneous data for Line 1 removed for March 13th. | K49: Annual | L49: =AVERAGE(L37:L48) ->  | M49: =MAX(M37:M48) -> 0 | N49: =AVERAGE(N37:N48) ->  | O49: =MAX(O37:O48) -> 0
J51: =+A5 -> 2024 | K51: mg/Nm3 | L51: Monthly mean of half-hourly averages | M51: Highest half- hourly average | N51: Monthly mean of daily averages | O51: Highest daily average
J52: A4 | K52: Jan
K53: Feb
K54: Mar
K55: Apr
K56: May
K57: Jun
K58: Jul
K59: Aug
K60: Sep
K61: Oct
K62: Nov
K63: Dec
K64: Annual | L64: =AVERAGE(L52:L63) ->  | M64: =MAX(M52:M63) -> 0 | N64: =AVERAGE(N52:N63) ->  | O64: =MAX(O52:O63) -> 0
J66: =+A5 -> 2024 | K66: mg/Nm3 | L66: Monthly mean of half-hourly averages | M66: Highest half- hourly average | N66: Monthly mean of daily averages | O66: Highest daily average
J67: A5 | K67: Jan
K68: Feb
K69: Mar
K70: Apr
K71: May
K72: Jun
K73: Jul
K74: Aug
K75: Sep
K76: Oct
K77: Nov
K78: Dec
K79: Annual | L79: =AVERAGE(L67:L78) ->  | M79: =MAX(M67:M78) -> 0 | N79: =AVERAGE(N67:N78) ->  | O79: =MAX(O67:O78) -> 0

Sheet SO2
A1: =+'Cover Page'!$B$29 -> Annual Performance Report 2024 | E1: =+'Cover Page'!$B$33 -> Suffolk EfW
A3: Monitoring of Sulphur dioxide emissions | D3: Whole Installation | G3: See Notes in Cell Q3 | J3: =+A3 -> Monitoring of Sulphur dioxide emissions | N3: Per Combustion Line | Q3: Notes:
Q4: User to add logic to complete Whole installation, Table A5:G18. From the data in Per Combustion Line, Table J6:O79, subject to No. of lines installed
A5: =+'Cover Page'!C39 -> 2024 | B5: 1/2 Hourly Reference Periods | E5: Daily Reference Periods
A6: mg/Nm3 | B6: 1/2 hourly SO2 ELV | C6: Monthly mean of half-hourly averages | D6: Highest half- hourly average | E6: Daily SO2 ELV | F6: Monthly mean of daily averages | G6: Highest daily average | J6: =+A5 -> 2024 | K6: mg/Nm3 | L6: Monthly mean of half-hourly averages | M6: Highest half- hourly average | N6: Monthly mean of daily averages | O6: Highest daily average
A7: Jan | B7: 200 | C7: =AVERAGE(L7,L22,L37,L52,L67) -> 29.48225806 | D7: =MAX(M7,M22,M37,M52,M67) -> 138.4 | E7: 40 | F7: =AVERAGE(N7,N22,N37,N52,N67) -> 29.45752688 | G7: =MAX(O7,O22,O37,O52,O67) -> 34.8 | J7: A1 | K7: Jan | L7: 28.9483871 | M7: 114 | N7: 28.9483871 | O7: 34.8
A8: Feb | B8: 200 | C8: =AVERAGE(L8,L23,L38,L53,L68) -> 27.64324138 | D8: =MAX(M8,M23,M38,M53,M68) -> 111.4 | E8: 40 | F8: =AVERAGE(N8,N23,N38,N53,N68) -> 28.05608974 | G8: =MAX(O8,O23,O38,O53,O68) -> 32.5 | K8: Feb | L8: 29.23448276 | M8: 100 | N8: 29.80384615 | O8: 32.5
A9: Mar | B9: 200 | C9: 27.51693323 | D9: 246.9086456 | E9: 40 | F9: 27.59314516 | G9: 38.28635406 | K9: Mar | L9: 28.97749943 | M9: 246.9086456 | N9: 29.125 | O9: 38.28635406 | Q9: Whole Installation table A5:G18:
A10: Apr | B10: 200 | C10: 22.63333333 | D10: 62.9 | E10: 40 | F10: 22.91060606 | G10: 30.2 | K10: Apr | L10: 19.7 | M10: 53.1 | N10: 20.06666667 | O10: 26.4 | Q10: Mean: for 1/2 hourly and daily periods calculate mean of values across all operational combustion lines for the month
A11: May | B11: 200 | C11: 23.38725806 | D11: 120.3 | E11: 40 | F11: 23.3201891 | G11: 33.1 | K11: May | L11: 24.96451613 | M11: 102.8 | N11: 24.96451613 | O11: 33.1
A12: Jun | B12: 200 | C12: 24.43436379 | D12: 61.15256882 | E12: 40 | F12: 24.42752874 | G12: 30.67471695 | K12: Jun | L12: 25.89581099 | M12: 61.15256882 | N12: 25.90333333 | O12: 30.37288284
A13: Jul | B13: 200 | C13: 24.22530423 | D13: 93.91011047 | E13: 40 | F13: 24.29010753 | G13: 30.45384789 | K13: Jul | L13: 24.79475442 | M13: 61.79101181 | N13: 24.79354839 | O13: 30.07897758 | Q13: Maximum: for 1/2 hourly and daily periods use the highest value across all operational combustion lines for the month
A14: Aug | B14: 200 | C14: 18.02546891 | D14: 144.2187195 | E14: 40 | F14: 18.07557604 | G14: 29.09889603 | K14: Aug | L14: 20.22569092 | M14: 144.2187195 | N14: 20.22258065 | O14: 29.09889603
A15: Sep | B15: 200 | C15: 20.73864957 | D15: 48.33906174 | E15: 40 | F15: 20.74 | G15: 31.54670525 | K15: Sep | L15: 21.96788104 | M15: 47.18675232 | N15: 21.97 | O15: 31.54670525
A16: Oct | B16: 200 | C16: 22.62431938 | D16: 83.68173218 | E16: 40 | F16: 22.93311722 | G16: 31.04051971 | K16: Oct | L16: 23.54214305 | M16: 83.68173218 | N16: 23.86144866 | O16: 31.04051971
A17: Nov | B17: 200 | C17: 27.38673505 | D17: 111.6446152 | E17: 40 | F17: 27.53246985 | G17: 34.81108475 | K17: Nov | L17: 28.5789099 | M17: 111.6446152 | N17: 28.87037955 | O17: 34.81108475
A18: Dec | B18: 200 | C18: 28.52374407 | D18: 140.8176727 | E18: 40 | F18: 28.45 | G18: 37.46405029 | K18: Dec | L18: 29.64015679 | M18: 140.8176727 | N18: 29.4 | O18: 37.46405029
K19: Annual | L19: =AVERAGE(L7:L18) -> 25.53918604 | M19: =MAX(M7:M18) -> 246.9086456 | N19: =AVERAGE(N7:N18) -> 25.66080889 | O19: =MAX(O7:O18) -> 38.28635406
J21: =+A5 -> 2024 | K21: mg/Nm3 | L21: Monthly mean of half-hourly averages | M21: Highest half- hourly average | N21: Monthly mean of daily averages | O21: Highest daily average
J22: A2 | K22: Jan | L22: 30.01612903 | M22: 138.4 | N22: 29.96666667 | O22: 33
K23: Feb | L23: 26.052 | M23: 111.4 | N23: 26.30833333 | O23: 32.3
K24: Mar | L24: 26.05636704 | M24: 71.96766663 | N24: 26.06129032 | O24: 28.6040802
K25: Apr | L25: 25.56666667 | M25: 62.9 | N25: 25.75454545 | O25: 30.2
K26: May | L26: 21.81 | M26: 120.3 | N26: 21.67586207 | O26: 28.6
K27: Jun | L27: 22.97291658 | M27: 54.44773865 | N27: 22.95172414 | O27: 30.67471695
K28: Jul | L28: 23.65585404 | M28: 93.91011047 | N28: 23.78666667 | O28: 30.45384789
K29: Aug | L29: 15.8252469 | M29: 130.869278 | N29: 15.92857143 | O29: 24.16581345
K30: Sep | L30: 19.50941811 | M30: 48.33906174 | N30: 19.51 | O30: 27.12332344
K31: Oct | L31: 21.7064957 | M31: 70.54021454 | N31: 22.00478578 | O31: 29.59677696
K32: Nov | L32: 26.19456021 | M32: 62.20075226 | N32: 26.19456015 | O32: 31.85078049
K33: Dec | L33: 27.40733135 | M33: 82.3099823 | N33: 27.5 | O33: 32.04340363
K34: Annual | L34: =AVERAGE(L22:L33) -> 23.8977488 | M34: =MAX(M22:M33) -> 138.4 | N34: =AVERAGE(N22:N33) -> 23.9702505 | O34: =MAX(O22:O33) -> 33
J36: =+A5 -> 2024 | K36: mg/Nm3 | L36: Monthly mean of half-hourly averages | M36: Highest half- hourly average | N36: Monthly mean of daily averages | O36: Highest daily average
J37: A3 | K37: Jan
K38: Feb
K39: Mar
K40: Apr
K41: May
K42: Jun
K43: Jul
K44: Aug
K45: Sep
K46: Oct
K47: Nov
A48: Comments : | K48: Dec
K49: Annual | L49: =AVERAGE(L37:L48) ->  | M49: =MAX(M37:M48) -> 0 | N49: =AVERAGE(N37:N48) ->  | O49: =MAX(O37:O48) -> 0
J51: =+A5 -> 2024 | K51: mg/Nm3 | L51: Monthly mean of half-hourly averages | M51: Highest half- hourly average | N51: Monthly mean of daily averages | O51: Highest daily average
J52: A4 | K52: Jan
K53: Feb
K54: Mar
K55: Apr
K56: May
K57: Jun
K58: Jul
K59: Aug
K60: Sep
K61: Oct
K62: Nov
K63: Dec
K64: Annual | L64: =AVERAGE(L52:L63) ->  | M64: =MAX(M52:M63) -> 0 | N64: =AVERAGE(N52:N63) ->  | O64: =MAX(O52:O63) -> 0
J66: =+A5 -> 2024 | K66: mg/Nm3 | L66: Monthly mean of half-hourly averages | M66: Highest half- hourly average | N66: Monthly mean of daily averages | O66: Highest daily average
J67: A5 | K67: Jan
K68: Feb
K69: Mar
K70: Apr
K71: May
K72: Jun
K73: Jul
K74: Aug
K75: Sep
K76: Oct
K77: Nov
K78: Dec
K79: Annual | L79: =AVERAGE(L67:L78) ->  | M79: =MAX(M67:M78) -> 0 | N79: =AVERAGE(N67:N78) ->  | O79: =MAX(O67:O78) -> 0

Sheet NOx
A1: =+'Cover Page'!$B$29 -> Annual Performance Report 2024 | E1: =+'Cover Page'!$B$33 -> Suffolk EfW
A3: Monitoring of Oxides of Nitrogen emissions | D3: Whole Installation | G3: See Notes in Cell Q3 | J3: =+A3 -> Monitoring of Oxides of Nitrogen emissions | N3: Per Combustion Line | Q3: Notes:
Q4: User to add logic to complete Whole installation, Table A5:G18. From the data in Per Combustion Line, Table J6:O79, subject to No. of lines installed
A5: =+'Cover Page'!C39 -> 2024 | B5: 1/2 Hourly Reference Periods | E5: Daily Reference Periods
A6: mg/Nm3 | B6: 1/2 hourly NOx ELV | C6: Monthly mean of half-hourly averages | D6: Highest half- hourly average | E6: Daily NOx ELV | F6: Monthly mean of daily averages | G6: Highest daily average | J6: =+A5 -> 2024 | K6: mg/Nm3 | L6: Monthly mean of half-hourly averages | M6: Highest half- hourly average | N6: Monthly mean of daily averages | O6: Highest daily average
A7: Jan | B7: 400 | C7: =AVERAGE(L7,L22,L37,L52,L67) -> 165.5548387 | D7: =MAX(M7,M22,M37,M52,M67) -> 234.9 | E7: 180 | F7: =AVERAGE(N7,N22,N37,N52,N67) -> 165.6107527 | G7: =MAX(O7,O22,O37,O52,O67) -> 171.1 | J7: A1 | K7: Jan | L7: 165.3387097 | M7: 206.7 | N7: 165.3548387 | O7: 171.1
A8: Feb | B8: 400 | C8: =AVERAGE(L8,L23,L38,L53,L68) -> 165.0922759 | D8: =MAX(M8,M23,M38,M53,M68) -> 291 | E8: 180 | F8: =AVERAGE(N8,N23,N38,N53,N68) -> 165.6554487 | G8: =MAX(O8,O23,O38,O53,O68) -> 173.8 | K8: Feb | L8: 164.2965517 | M8: 204.2 | N8: 165.2692308 | O8: 167.3
A9: Mar | B9: 400 | C9: 165.1824877 | D9: 284.8877563 | E9: 180 | F9: 165.3481183 | G9: 172.853302 | K9: Mar | L9: 164.8513998 | M9: 227.8529205 | N9: 165.1833333 | O9: 167.5064545 | Q9: Whole Installation table A5:G18:
A10: Apr | B10: 400 | C10: 165.9071429 | D10: 230.6 | E10: 180 | F10: 167.7878788 | G10: 174 | K10: Apr | L10: 165.9142857 | M10: 215.7 | N10: 169.6666667 | O10: 174 | Q10: Mean: for 1/2 hourly and daily periods calculate mean of values across all operational combustion lines for the month
A11: May | B11: 400 | C11: 165.2267204 | D11: 216.2 | E11: 180 | F11: 165.1401557 | G11: 167.7 | K11: May | L11: 164.6967742 | M11: 188.8 | N11: 164.9354839 | O11: 165.1
A12: Jun | B12: 400 | C12: 164.8909939 | D12: 277.6069031 | E12: 180 | F12: 165.0045977 | G12: 171.4403229 | K12: Jun | L12: 164.6346174 | M12: 231.4169464 | N12: 164.7333333 | O12: 168.0845642
A13: Jul | B13: 400 | C13: 164.5329121 | D13: 216.4581451 | E13: 180 | F13: 164.5573656 | G13: 167.120224 | K13: Jul | L13: 163.964004 | M13: 181.6614532 | N13: 163.9580645 | O13: 164.8002472 | Q13: Maximum: for 1/2 hourly and daily periods use the highest value across all operational combustion lines for the month
A14: Aug | B14: 400 | C14: 164.1437373 | D14: 196.6162262 | E14: 180 | F14: 164.1610023 | G14: 165.3702087 | K14: Aug | L14: 163.7592846 | M14: 196.6162262 | N14: 163.7612903 | O14: 164.8711853
A15: Sep | B15: 400 | C15: 163.9572142 | D15: 192.1797333 | E15: 180 | F15: 163.96 | G15: 165.2724152 | K15: Sep | L15: 162.9474142 | M15: 192.1797333 | N15: 162.95 | O15: 164.838623
A16: Oct | B16: 400 | C16: 163.0968319 | D16: 188.52388 | E16: 180 | F16: 163.3029278 | G16: 165.4922943 | K16: Oct | L16: 161.3957494 | M16: 188.52388 | N16: 161.8156978 | O16: 164.6414795
A17: Nov | B17: 400 | C17: 162.4779369 | D17: 188.8797302 | E17: 180 | F17: 162.6301912 | G17: 165.207077 | K17: Nov | L17: 160.4783965 | M17: 177.7524567 | N17: 160.7829064 | O17: 164.0074463
A18: Dec | B18: 400 | C18: 162.8754533 | D18: 217.288681 | E18: 180 | F18: 163.05 | G18: 170.3168488 | K18: Dec | L18: 160.952284 | M18: 217.288681 | N18: 161.1 | O18: 170.3168488
K19: Annual | L19: =AVERAGE(L7:L18) -> 163.6024559 | M19: =MAX(M7:M18) -> 231.4169464 | N19: =AVERAGE(N7:N18) -> 164.1259038 | O19: =MAX(O7:O18) -> 174
J21: =+A5 -> 2024 | K21: mg/Nm3 | L21: Monthly mean of half-hourly averages | M21: Highest half- hourly average | N21: Monthly mean of daily averages | O21: Highest daily average
J22: A2 | K22: Jan | L22: 165.7709677 | M22: 234.9 | N22: 165.8666667 | O22: 170
K23: Feb | L23: 165.888 | M23: 291 | N23: 166.0416667 | O23: 173.8
K24: Mar | L24: 165.5135757 | M24: 284.8877563 | N24: 165.5129032 | O24: 172.853302
K25: Apr | L25: 165.9 | M25: 230.6 | N25: 165.9090909 | O25: 168.2
K26: May | L26: 165.7566667 | M26: 216.2 | N26: 165.3448276 | O26: 167.7
K27: Jun | L27: 165.1473703 | M27: 277.6069031 | N27: 165.2758621 | O27: 171.4403229
K28: Jul | L28: 165.1018202 | M28: 216.4581451 | N28: 165.1566667 | O28: 167.120224
K29: Aug | L29: 164.52819 | M29: 184.3434296 | N29: 164.5607143 | O29: 165.3702087
K30: Sep | L30: 164.9670141 | M30: 186.5975037 | N30: 164.97 | O30: 165.2724152
K31: Oct | L31: 164.7979143 | M31: 182.1043243 | N31: 164.7901577 | O31: 165.4922943
K32: Nov | L32: 164.4774773 | M32: 188.8797302 | N32: 164.477476 | O32: 165.207077
K33: Dec | L33: 164.7986227 | M33: 196.0863037 | N33: 165 | O33: 168.1943359
K34: Annual | L34: =AVERAGE(L22:L33) -> 165.2206349 | M34: =MAX(M22:M33) -> 291 | N34: =AVERAGE(N22:N33) -> 165.2421693 | O34: =MAX(O22:O33) -> 173.8
J36: =+A5 -> 2024 | K36: mg/Nm3 | L36: Monthly mean of half-hourly averages | M36: Highest half- hourly average | N36: Monthly mean of daily averages | O36: Highest daily average
J37: A3 | K37: Jan
K38: Feb
K39: Mar
K40: Apr
K41: May
K42: Jun
K43: Jul
K44: Aug
K45: Sep
K46: Oct
K47: Nov
A48: Comments : | K48: Dec
K49: Annual | L49: =AVERAGE(L37:L48) ->  | M49: =MAX(M37:M48) -> 0 | N49: =AVERAGE(N37:N48) ->  | O49: =MAX(O37:O48) -> 0
J51: =+A5 -> 2024 | K51: mg/Nm3 | L51: Monthly mean of half-hourly averages | M51: Highest half- hourly average | N51: Monthly mean of daily averages | O51: Highest daily average
J52: A4 | K52: Jan
K53: Feb
K54: Mar
K55: Apr
K56: May
K57: Jun
K58: Jul
K59: Aug
K60: Sep
K61: Oct
K62: Nov
K63: Dec
K64: Annual | L64: =AVERAGE(L52:L63) ->  | M64: =MAX(M52:M63) -> 0 | N64: =AVERAGE(N52:N63) ->  | O64: =MAX(O52:O63) -> 0
J66: =+A5 -> 2024 | K66: mg/Nm3 | L66: Monthly mean of half-hourly averages | M66: Highest half- hourly average | N66: Monthly mean of daily averages | O66: Highest daily average
J67: A5 | K67: Jan
K68: Feb
K69: Mar
K70: Apr
K71: May
K72: Jun
K73: Jul
K74: Aug
K75: Sep
K76: Oct
K77: Nov
K78: Dec
K79: Annual | L79: =AVERAGE(L67:L78) ->  | M79: =MAX(M67:M78) -> 0 | N79: =AVERAGE(N67:N78) ->  | O79: =MAX(O67:O78) -> 0

Sheet TOC
A1: =+'Cover Page'!$B$29 -> Annual Performance Report 2024 | E1: =+'Cover Page'!$B$33 -> Suffolk EfW
A3: Monitoring of Total organic carbon emissions | D3: Whole Installation | G3: See Notes in Cell Q3 | J3: =+A3 -> Monitoring of Total organic carbon emissions | N3: Per Combustion Line | Q3: Notes:
Q4: User to add logic to complete Whole installation, Table A5:G18. From the data in Per Combustion Line, Table J6:O79, subject to No. of lines installed
A5: =+'Cover Page'!C39 -> 2024 | B5: 1/2 Hourly Reference Periods | E5: Daily Reference Periods
A6: mg/Nm3 | B6: 1/2 hourly TOC ELV | C6: Monthly mean of half-hourly averages | D6: Highest half- hourly average | E6: Daily TOC ELV | F6: Monthly mean of daily averages | G6: Highest daily average | J6: =+A5 -> 2024 | K6: mg/Nm3 | L6: Monthly mean of half-hourly averages | M6: Highest half- hourly average | N6: Monthly mean of daily averages | O6: Highest daily average
A7: Jan | B7: 20 | C7: =AVERAGE(L7,L22,L37,L52,L67) -> 0.35 | D7: =MAX(M7,M22,M37,M52,M67) -> 11.2 | E7: 10 | F7: =AVERAGE(N7,N22,N37,N52,N67) -> 0.3631182796 | G7: =MAX(O7,O22,O37,O52,O67) -> 1.1 | J7: A1 | K7: Jan | L7: 0.3 | M7: 11.2 | N7: 0.3129032258 | O7: 0.6
A8: Feb | B8: 20 | C8: =AVERAGE(L8,L23,L38,L53,L68) -> 0.6 | D8: =MAX(M8,M23,M38,M53,M68) -> 68.7 | E8: 10 | F8: =AVERAGE(N8,N23,N38,N53,N68) -> 0.4120192308 | G8: =MAX(O8,O23,O38,O53,O68) -> 0.9 | K8: Feb | L8: 0.7 | M8: 68.7 | N8: 0.3615384615 | O8: 0.5
A9: Mar | B9: 20 | C9: 0.45 | D9: 16.4 | E9: 10 | F9: 0.4525537634 | G9: 0.8 | K9: Mar | L9: 0.4 | M9: 16.4 | N9: 0.4083333333 | O9: 0.7 | Q9: Whole Installation table A5:G18:
A10: Apr | B10: 20 | C10: 0.65 | D10: 13.5 | E10: 10 | F10: 0.6333333333 | G10: 1.1 | K10: Apr | L10: 0.6 | M10: 2.5 | N10: 0.5666666667 | O10: 0.6 | Q10: Mean: for 1/2 hourly and daily periods calculate mean of values across all operational combustion lines for the month
A11: May | B11: 20 | C11: 0.55 | D11: 5.8 | E11: 10 | F11: 0.504894327 | G11: 1.1 | K11: May | L11: 0.4 | M11: 4.1 | N11: 0.3580645161 | O11: 0.7
A12: Jun | B12: 20 | C12: 0.35 | D12: 7.5 | E12: 10 | F12: 0.3455172414 | G12: 0.8 | K12: Jun | L12: 0.3 | M12: 7.5 | N12: 0.26 | O12: 0.5
A13: Jul | B13: 20 | C13: 0.3 | D13: 8.4 | E13: 10 | F13: 0.2888709677 | G13: 0.5 | K13: Jul | L13: 0.3 | M13: 6.7 | N13: 0.2677419355 | O13: 0.4 | Q13: Maximum: for 1/2 hourly and daily periods use the highest value across all operational combustion lines for the month
A14: Aug | B14: 20 | C14: 0.25 | D14: 64 | E14: 10 | F14: 0.2823732719 | G14: 4.1 | K14: Aug | L14: 0.2 | M14: 13.8 | N14: 0.2290322581 | O14: 0.5
A15: Sep | B15: 20 | C15: 0.2 | D15: 9.4 | E15: 10 | F15: 0.19 | G15: 0.3 | K15: Sep | L15: 0.2 | M15: 9.4 | N15: 0.1933333333 | O15: 0.3
A16: Oct | B16: 20 | C16: 0.15 | D16: 22.6 | E16: 10 | F16: 0.1449127851 | G16: 0.6 | K16: Oct | L16: 0.2 | M16: 22.6 | N16: 0.1575036075 | O16: 0.6
A17: Nov | B17: 20 | C17: 0.15 | D17: 7.7 | E17: 10 | F17: 0.1387603544 | G17: 0.3 | K17: Nov | L17: 0.1 | M17: 7.7 | N17: 0.1239167415 | O17: 0.3
A18: Dec | B18: 20 | C18: 0.15 | D18: 62.8 | E18: 10 | F18: 0.105 | G18: 0.33 | K18: Dec | L18: 0.1 | M18: 7.8 | N18: 0.12 | O18: 0.33
K19: Annual | L19: =AVERAGE(L7:L18) -> 0.3166666667 | M19: =MAX(M7:M18) -> 68.7 | N19: =AVERAGE(N7:N18) -> 0.2799195066 | O19: =MAX(O7:O18) -> 0.7
J21: =+A5 -> 2024 | K21: mg/Nm3 | L21: Monthly mean of half-hourly averages | M21: Highest half- hourly average | N21: Monthly mean of daily averages | O21: Highest daily average
J22: A2 | K22: Jan | L22: 0.4 | M22: 5.2 | N22: 0.4133333333 | O22: 1.1
K23: Feb | L23: 0.5 | M23: 16.1 | N23: 0.4625 | O23: 0.9
K24: Mar | L24: 0.5 | M24: 13.7 | N24: 0.4967741935 | O24: 0.8
K25: Apr | L25: 0.7 | M25: 13.5 | N25: 0.7 | O25: 1.1
K26: May | L26: 0.7 | M26: 5.8 | N26: 0.6517241379 | O26: 1.1
K27: Jun | L27: 0.4 | M27: 7.4 | N27: 0.4310344828 | O27: 0.8
K28: Jul | L28: 0.3 | M28: 8.4 | N28: 0.31 | O28: 0.5
K29: Aug | L29: 0.3 | M29: 64 | N29: 0.3357142857 | O29: 4.1
K30: Sep | L30: 0.2 | M30: 8.7 | N30: 0.1866666667 | O30: 0.3
K31: Oct | L31: 0.1 | M31: 9.4 | N31: 0.1323219627 | O31: 0.3
K32: Nov | L32: 0.2 | M32: 4.1 | N32: 0.1536039673 | O32: 0.3
K33: Dec | L33: 0.2 | M33: 62.8 | N33: 0.09 | O33: 0.26
K34: Annual | L34: =AVERAGE(L22:L33) -> 0.375 | M34: =MAX(M22:M33) -> 64 | N34: =AVERAGE(N22:N33) -> 0.3636394192 | O34: =MAX(O22:O33) -> 4.1
J36: =+A5 -> 2024 | K36: mg/Nm3 | L36: Monthly mean of half-hourly averages | M36: Highest half- hourly average | N36: Monthly mean of daily averages | O36: Highest daily average
J37: A3 | K37: Jan
K38: Feb
K39: Mar
K40: Apr
K41: May
K42: Jun
K43: Jul
K44: Aug
K45: Sep
K46: Oct
K47: Nov
A48: Comments : | K48: Dec
K49: Annual | L49: =AVERAGE(L37:L48) ->  | M49: =MAX(M37:M48) -> 0 | N49: =AVERAGE(N37:N48) ->  | O49: =MAX(O37:O48) -> 0
J51: =+A5 -> 2024 | K51: mg/Nm3 | L51: Monthly mean of half-hourly averages | M51: Highest half- hourly average | N51: Monthly mean of daily averages | O51: Highest daily average
J52: A4 | K52: Jan
K53: Feb
K54: Mar
K55: Apr
K56: May
K57: Jun
K58: Jul
K59: Aug
K60: Sep
K61: Oct
K62: Nov
K63: Dec
K64: Annual | L64: =AVERAGE(L52:L63) ->  | M64: =MAX(M52:M63) -> 0 | N64: =AVERAGE(N52:N63) ->  | O64: =MAX(O52:O63) -> 0
J66: =+A5 -> 2024 | K66: mg/Nm3 | L66: Monthly mean of half-hourly averages | M66: Highest half- hourly average | N66: Monthly mean of daily averages | O66: Highest daily average
J67: A5 | K67: Jan
K68: Feb
K69: Mar
K70: Apr
K71: May
K72: Jun
K73: Jul
K74: Aug
K75: Sep
K76: Oct
K77: Nov
K78: Dec
K79: Annual | L79: =AVERAGE(L67:L78) ->  | M79: =MAX(M67:M78) -> 0 | N79: =AVERAGE(N67:N78) ->  | O79: =MAX(O67:O78) -> 0

Sheet Particulates
A1: =+'Cover Page'!$B$29 -> Annual Performance Report 2024 | E1: =+'Cover Page'!$B$33 -> Suffolk EfW
A3: Monitoring of Particulate matter emissions | D3: Whole Installation | G3: See Notes in Cell Q3 | J3: =+A3 -> Monitoring of Particulate matter emissions | N3: Per Combustion Line | Q3: Notes:
A5: =+'Cover Page'!C39 -> 2024 | B5: 1/2 Hourly Reference Periods | E5: Daily Reference Periods | Q5: User to add logic to complete Whole installation, Table A5:G18. From the data in Per Combustion Line, Table J6:O79, subject to No. of lines installed
A6: mg/Nm3 | B6: 1/2 hourly PM ELV | C6: Monthly mean of half-hourly averages | D6: Highest half- hourly average | E6: Daily PM ELV | F6: Monthly mean of daily averages | G6: Highest daily average | J6: =+A5 -> 2024 | K6: mg/Nm3 | L6: Monthly mean of half-hourly averages | M6: Highest half- hourly average | N6: Monthly mean of daily averages | O6: Highest daily average
A7: Jan | B7: 30 | C7: =AVERAGE(L7,L22,L37,L52,L67) -> 0.8 | D7: =MAX(M7,M22,M37,M52,M67) -> 1.3 | E7: 5 | F7: =AVERAGE(N7,N22,N37,N52,N67) -> 0.7952688172 | G7: =MAX(O7,O22,O37,O52,O67) -> 1.2 | J7: A1 | K7: Jan | L7: 0.5 | M7: 0.9 | N7: 0.4838709677 | O7: 0.8
A8: Feb | B8: 30 | C8: =AVERAGE(L8,L23,L38,L53,L68) -> 0.85 | D8: =MAX(M8,M23,M38,M53,M68) -> 2.2 | E8: 5 | F8: =AVERAGE(N8,N23,N38,N53,N68) -> 0.8298076923 | G8: =MAX(O8,O23,O38,O53,O68) -> 1.2 | K8: Feb | L8: 0.7 | M8: 1.2 | N8: 0.6846153846 | O8: 0.8
A9: Mar | B9: 30 | C9: 1 | D9: 3.5 | E9: 5 | F9: 1.026075269 | G9: 2.3 | K9: Mar | L9: 0.8 | M9: 0.9 | N9: 0.8166666667 | O9: 0.9
A10: Apr | B10: 30 | C10: 0.8 | D10: 2.9 | E10: 5 | F10: 0.6863636364 | G10: 1.7 | K10: Apr | L10: 0.2 | M10: 1 | N10: 0 | O10: 0 | Q10: Whole Installation table A5:G18:
A11: May | B11: 30 | C11: 1.05 | D11: 2.2 | E11: 5 | F11: 1.055339266 | G11: 1.6 | K11: May | L11: 0.6 | M11: 1.4 | N11: 0.6451612903 | O11: 1.3 | Q11: Mean: for 1/2 hourly and daily periods calculate mean of values across all operational combustion lines for the month
A12: Jun | B12: 30 | C12: 1.45 | D12: 2 | E12: 5 | F12: 1.418045977 | G12: 1.6 | K12: Jun | L12: 1.3 | M12: 1.6 | N12: 1.253333333 | O12: 1.4
A13: Jul | B13: 30 | C13: 1.55 | D13: 2.5 | E13: 5 | F13: 1.548064516 | G13: 1.8 | K13: Jul | L13: 1.5 | M13: 2.5 | N13: 1.516129032 | O13: 1.8
A14: Aug | B14: 30 | C14: 1.65 | D14: 2.1 | E14: 5 | F14: 1.663076037 | G14: 1.9 | K14: Aug | L14: 1.8 | M14: 2.1 | N14: 1.822580645 | O14: 1.9 | Q14: Maximum: for 1/2 hourly and daily periods use the highest value across all operational combustion lines for the month
A15: Sep | B15: 30 | C15: 1.7 | D15: 2.4 | E15: 5 | F15: 1.688333333 | G15: 2.1 | K15: Sep | L15: 1.9 | M15: 2.4 | N15: 1.883333333 | O15: 2.1
A16: Oct | B16: 30 | C16: 1.8 | D16: 3.2 | E16: 5 | F16: 1.792727519 | G16: 2.2 | K16: Oct | L16: 2.1 | M16: 3.2 | N16: 2.051537888 | O16: 2.2
A17: Nov | B17: 30 | C17: 1.7 | D17: 2.3 | E17: 5 | F17: 1.670621783 | G17: 2 | K17: Nov | L17: 1.8 | M17: 2.3 | N17: 1.783135701 | O17: 2
A18: Dec | B18: 30 | C18: 1.35 | D18: 1.8 | E18: 5 | F18: 1.37 | G18: 1.6 | K18: Dec | L18: 1.3 | M18: 1.8 | N18: 1.31 | O18: 1.6
K19: Annual | L19: =AVERAGE(L7:L18) -> 1.208333333 | M19: =MAX(M7:M18) -> 3.2 | N19: =AVERAGE(N7:N18) -> 1.187530354 | O19: =MAX(O7:O18) -> 2.2
J21: =+A5 -> 2024 | K21: mg/Nm3 | L21: Monthly mean of half-hourly averages | M21: Highest half- hourly average | N21: Monthly mean of daily averages | O21: Highest daily average
J22: A2 | K22: Jan | L22: 1.1 | M22: 1.3 | N22: 1.106666667 | O22: 1.2
K23: Feb | L23: 1 | M23: 2.2 | N23: 0.975 | O23: 1.2
K24: Mar | L24: 1.2 | M24: 3.5 | N24: 1.235483871 | O24: 2.3
K25: Apr | L25: 1.4 | M25: 2.9 | N25: 1.372727273 | O25: 1.7
K26: May | L26: 1.5 | M26: 2.2 | N26: 1.465517241 | O26: 1.6
K27: Jun | L27: 1.6 | M27: 2 | N27: 1.582758621 | O27: 1.6
K28: Jul | L28: 1.6 | M28: 1.9 | N28: 1.58 | O28: 1.6
K29: Aug | L29: 1.5 | M29: 2 | N29: 1.503571429 | O29: 1.6
K30: Sep | L30: 1.5 | M30: 1.7 | N30: 1.493333333 | O30: 1.5
K31: Oct | L31: 1.5 | M31: 2.3 | N31: 1.533917149 | O31: 1.6
K32: Nov | L32: 1.6 | M32: 1.7 | N32: 1.558107865 | O32: 1.6
K33: Dec | L33: 1.4 | M33: 1.7 | N33: 1.43 | O33: 1.6
K34: Annual | L34: =AVERAGE(L22:L33) -> 1.408333333 | M34: =MAX(M22:M33) -> 3.5 | N34: =AVERAGE(N22:N33) -> 1.403090287 | O34: =MAX(O22:O33) -> 2.3
J36: =+A5 -> 2024 | K36: mg/Nm3 | L36: Monthly mean of half-hourly averages | M36: Highest half- hourly average | N36: Monthly mean of daily averages | O36: Highest daily average
J37: A3 | K37: Jan
K38: Feb
K39: Mar
K40: Apr
K41: May
K42: Jun
K43: Jul
K44: Aug
K45: Sep
K46: Oct
K47: Nov
A48: Comments : | K48: Dec
A49: Some erroneous data for Line 1 removed for March 13th. | K49: Annual | L49: =AVERAGE(L37:L48) ->  | M49: =MAX(M37:M48) -> 0 | N49: =AVERAGE(N37:N48) ->  | O49: =MAX(O37:O48) -> 0
J51: =+A5 -> 2024 | K51: mg/Nm3 | L51: Monthly mean of half-hourly averages | M51: Highest half- hourly average | N51: Monthly mean of daily averages | O51: Highest daily average
J52: A4 | K52: Jan
K53: Feb
K54: Mar
K55: Apr
K56: May
K57: Jun
K58: Jul
K59: Aug
K60: Sep
K61: Oct
K62: Nov
K63: Dec
K64: Annual | L64: =AVERAGE(L52:L63) ->  | M64: =MAX(M52:M63) -> 0 | N64: =AVERAGE(N52:N63) ->  | O64: =MAX(O52:O63) -> 0
J66: =+A5 -> 2024 | K66: mg/Nm3 | L66: Monthly mean of half-hourly averages | M66: Highest half- hourly average | N66: Monthly mean of daily averages | O66: Highest daily average
J67: A5 | K67: Jan
K68: Feb
K69: Mar
K70: Apr
K71: May
K72: Jun
K73: Jul
K74: Aug
K75: Sep
K76: Oct
K77: Nov
K78: Dec
K79: Annual | L79: =AVERAGE(L67:L78) ->  | M79: =MAX(M67:M78) -> 0 | N79: =AVERAGE(N67:N78) ->  | O79: =MAX(O67:O78) -> 0

Sheet CO 95% 10 min
A1: =+'Cover Page'!$B$29 -> Annual Performance Report 2024 | E1: =+'Cover Page'!$B$33 -> Suffolk EfW
A3: Monitoring of Carbon Monoxide (10-minute avg) | E3: Whole Installation | H3: See Notes in Cell S3 | J3: =+A3 -> Monitoring of Carbon Monoxide (10-minute avg) | O3: Per Combustion Line | Q3: Notes: | S3: Notes:
S5: User to add logic to complete Whole installation, Table A5:H18. From the data in Per Combustion Line, Table K6:Q79, subject to No. of lines installed
A6: =+'Cover Page'!C39 -> 2024 | B6: 10-minute Reference Periods | F6: Daily Reference Periods
A7: mg/Nm3 | B7: 95%ile 10-min avg CO ELV | C7: Highest daily 95%ile 10-min average | D7: Monthly mean of 10-min averages | E7: Highest 10-min average | F7: Daily CO ELV | G7: Monthly mean of daily averages | H7: Highest daily average | K7: =+A6 -> 2024 | L7: mg/Nm3 | M7: Highest daily 95%ile 10-min average | N7: Monthly mean of 10-min averages | O7: Highest 10-min average | P7: Monthly mean of daily averages | Q7: Highest daily average
A8: Jan | B8: 150 | C8: =AVERAGE(M8,M23,M38,M53,M68) -> 49.05 | D8: =AVERAGE(N8,N23,N38,N53,N68) -> 3.45 | E8: =MAX(O8,O23,O38,O53,O68) -> 426 | F8: 50 | G8: =AVERAGE(P8,P23,P38,P53,P68) -> 3.435 | H8: =MAX(Q8,Q23,Q38,Q53,Q68) -> 12.6 | K8: A1 | L8: Jan | M8: 73.7 | N8: 3.3 | O8: 338 | P8: 3.32 | Q8: 12.6
A9: Feb | B9: =+B8 -> 150 | C9: =AVERAGE(M9,M24,M39,M54,M69) -> 586.1 | D9: =AVERAGE(N9,N24,N39,N54,N69) -> 6.8 | E9: =MAX(O9,O24,O39,O54,O69) -> 841 | F9: =+F8 -> 50 | G9: =AVERAGE(P9,P24,P39,P54,P69) -> 3.75 | H9: =MAX(Q9,Q24,Q39,Q54,Q69) -> 10.2 | L9: Feb | M9: 622.5 | N9: 9.5 | O9: 841 | P9: 3.45 | Q9: 10.2
A10: Mar | B10: =+B9 -> 150 | C10: 755 | D10: 3 | E10: 1633 | F10: =+F9 -> 50 | G10: 2.92 | H10: 9.1 | L10: Mar | M10: 1472.8 | N10: 4.1 | O10: 1633 | P10: 3.5 | Q10: 9.1 | S10: Whole Installation table A5:H18:
A11: Apr | B11: 150 | C11: =AVERAGE(M11,M26,M41,M56,M71) -> 7.75 | D11: 2 | E11: 462 | F11: 50 | G11: 1.74 | H11: 11.6 | L11: Apr | M11: 4.1 | N11: 1.7 | O11: 233 | P11: 1.03 | Q11: 2.6 | S11: Mean: for 10-min and daily periods use average of all operational combustion lines.
A12: May | B12: 150 | C12: 43.7 | D12: 3.35 | E12: 423 | F12: 50 | G12: 2.635 | H12: 12.3 | L12: May | M12: 20.6 | N12: 2.4 | O12: 423 | P12: 1 | Q12: 2
A13: Jun | B13: 150 | C13: 54.93 | D13: 6.95 | E13: 510 | F13: 50 | G13: 2.865 | H13: 11.9 | L13: Jun | M13: 30.96 | N13: 4.7 | O13: 443 | P13: 1.85 | Q13: 2.7
A14: Jul | B14: 150 | C14: 57.3 | D14: 6.15 | E14: 510 | F14: 50 | G14: 2.62 | H14: 8.5 | L14: Jul | M14: 66.8 | N14: 6 | O14: 321 | P14: 2.44 | Q14: 7.5 | S14: Maximum: for 10-min and daily periods use the highest of all operational combustion lines in any month.
A15: Aug | B15: 150 | C15: 104.25 | D15: 6.55 | E15: 3172 | F15: 50 | G15: 2.195 | H15: 4.4 | L15: Aug | M15: 45.6 | N15: 6 | O15: 338 | P15: 2.38 | Q15: 3.6
A16: Sep | B16: 150 | C16: 30.65 | D16: 4.55 | E16: 380 | F16: 50 | G16: 2.565 | H16: 4.2 | L16: Sep | M16: 38.4 | N16: 4.4 | O16: 331 | P16: 2.32 | Q16: 3.6
A17: Oct | B17: 150 | C17: 55.75 | D17: 5.3 | E17: 451 | F17: 50 | G17: 2.78 | H17: 5.6 | L17: Oct | M17: 86.2 | N17: 5.5 | O17: 451 | P17: 2.84 | Q17: 5.6
A18: Nov | B18: 150 | C18: 30.75 | D18: 5.1 | E18: 383 | F18: 50 | G18: 2.75 | H18: 4.7 | L18: Nov | M18: 34.5 | N18: 5.3 | O18: 358 | P18: 2.75 | Q18: 4.7
A19: Dec | B19: 150 | C19: 36.75 | D19: 6.25 | E19: 858 | F19: 50 | G19: 3.97 | H19: 4.8 | L19: Dec | M19: 69.1 | N19: 6.8 | O19: 319 | P19: 4.8 | Q19: 4.8
L20: Annual | M20: =AVERAGE(M8:M19) -> 213.7716667 | O20: =MAX(O8:O19) -> 1633 | P20: =AVERAGE(P8:P19) -> 2.64 | Q20: =MAX(Q8:Q19) -> 12.6
K22: =+A6 -> 2024 | L22: mg/Nm3 | M22: Highest daily 95%ile 10-min average | N22: Monthly mean of 10-min averages | O22: Highest 10-min average | P22: Monthly mean of daily averages | Q22: Highest daily average
K23: A2 | L23: Jan | M23: 24.4 | N23: 3.6 | O23: 426 | P23: 3.55 | Q23: 8
L24: Feb | M24: 549.7 | N24: 4.1 | O24: 414 | P24: 4.05 | Q24: 9.6
L25: Mar | M25: 37.2 | N25: 1.9 | O25: 666 | P25: 2.34 | Q25: 6
L26: Apr | M26: 11.4 | N26: 2.3 | O26: 462 | P26: 2.45 | Q26: 11.6
L27: May | M27: 66.8 | N27: 4.3 | O27: 385 | P27: 4.27 | Q27: 12.3
L28: Jun | M28: 78.9 | N28: 9.2 | O28: 510 | P28: 3.88 | Q28: 11.9
L29: Jul | M29: 47.8 | N29: 6.3 | O29: 510 | P29: 2.8 | Q29: 8.5
L30: Aug | M30: 162.9 | N30: 7.1 | O30: 3172 | P30: 2.01 | Q30: 4.4
L31: Sep | M31: 22.9 | N31: 4.7 | O31: 380 | P31: 2.81 | Q31: 4.2
L32: Oct | M32: 25.3 | N32: 5.1 | O32: 388 | P32: 2.72 | Q32: 3.4
L33: Nov | M33: 27 | N33: 4.9 | O33: 383 | P33: 2.75 | Q33: 4
L34: Dec | M34: 4.4 | N34: 5.7 | O34: 858 | P34: 3.14 | Q34: 3.7
L35: Annual | M35: =AVERAGE(M23:M34) -> 88.225 | O35: =MAX(O23:O34) -> 3172 | P35: =AVERAGE(P23:P34) -> 3.064166667 | Q35: =MAX(Q23:Q34) -> 12.3
K37: =+A6 -> 2024 | L37: mg/Nm3 | M37: Highest daily 95%ile 10-min average | N37: Monthly mean of 10-min averages | O37: Highest 10-min average | P37: Monthly mean of daily averages | Q37: Highest daily average
K38: A3 | L38: Jan
L39: Feb
L40: Mar
L41: Apr
L42: May
L43: Jun
L44: Jul
L45: Aug
L46: Sep
L47: Oct
L48: Nov
A49: Comments : | L49: Dec
A50: Environment Agency explanatory note: The 10-minute average ELV is based on the “95th percentile”. In this case this means that 95% of the 10 minute averages in the relevant 24-hour period (i.e. 137) must be below 150 mg/Nm3, and 5% (i.e. 7) are allowed to be any value above 150 mg/Nm3. Whilst we expect operators to minimise CO emissions at all times, it is perfectly acceptable for the value of the maximum 10-minute average to be above 150 mg/Nm3, provided the 95th percentile ELV has been met for that period. | L50: Annual | M50: =AVERAGE(M38:M49) ->  | O50: =MAX(O38:O49) -> 0 | P50: =AVERAGE(P38:P49) ->  | Q50: =MAX(Q38:Q49) -> 0
K52: =+A6 -> 2024 | L52: mg/Nm3 | M52: Highest daily 95%ile 10-min average | N52: Monthly mean of 10-min averages | O52: Highest 10-min average | P52: Monthly mean of daily averages | Q52: Highest daily average
K53: A4 | L53: Jan
L54: Feb
L55: Mar
L56: Apr
L57: May
L58: Jun
L59: Jul
L60: Aug
L61: Sep
L62: Oct
L63: Nov
L64: Dec
L65: Annual | M65: =AVERAGE(M53:M64) ->  | O65: =MAX(O53:O64) -> 0 | P65: =AVERAGE(P53:P64) ->  | Q65: =MAX(Q53:Q64) -> 0
K67: =+A6 -> 2024 | L67: mg/Nm3 | M67: 95%ile 10-min avg maximum | N67: Monthly CO 10-min avg mean | O67: 10-min avg maximum | P67: Monthly daily mean | Q67: Monthly daily maximum
K68: A5 | L68: Jan
L69: Feb
L70: Mar
L71: Apr
L72: May
L73: Jun
L74: Jul
L75: Aug
L76: Sep
L77: Oct
L78: Nov
L79: Dec
L80: Annual | M80: =AVERAGE(M68:M79) ->  | O80: =MAX(O68:O79) -> 0 | P80: =AVERAGE(P68:P79) ->  | Q80: =MAX(Q68:Q79) -> 0

Sheet NH3
A1: =+'Cover Page'!$B$29 -> Annual Performance Report 2024 | E1: =+'Cover Page'!$B$33 -> Suffolk EfW
A3: Monitoring of Ammnonia emissions | D3: Whole Installation | G3: See Notes in Cell Q3 | J3: =+A3 -> Monitoring of Ammnonia emissions | N3: Per Combustion Line | Q3: Notes:
Q4: User to add logic to complete Whole installation, Table A5:G18. From the data in Per Combustion Line, Table J6:O79, subject to No. of lines installed
A5: =+'Cover Page'!C39 -> 2024 | B5: 1/2 Hourly Reference Periods | E5: Daily Reference Periods
A6: mg/Nm3 | B6: 1/2 hourly NH3 ELV | C6: Monthly mean of half-hourly averages | D6: Highest half- hourly average | E6: Daily NH3 ELV | F6: Monthly mean of daily averages | G6: Highest daily average | J6: =+A5 -> 2024 | K6: mg/Nm3 | L6: Monthly mean of half-hourly averages | M6: Highest half- hourly average | N6: Monthly mean of daily averages | O6: Highest daily average
A7: Jan | B7: None | C7: =AVERAGE(L7,L22,L37,L52,L67) -> 1 | D7: =MAX(M7,M22,M37,M52,M67) -> 4.8 | E7: 15 | F7: =AVERAGE(N7,N22,N37,N52,N67) -> 0.955 | G7: =MAX(O7,O22,O37,O52,O67) -> 2.4 | J7: A1 | K7: Jan | L7: 0.7 | M7: 3.1 | N7: 0.65 | O7: 1.3
A8: Feb | B8: =+B7 -> None | C8: =AVERAGE(L8,L23,L38,L53,L68) -> 0.75 | D8: =MAX(M8,M23,M38,M53,M68) -> 25 | E8: 15 | F8: =AVERAGE(N8,N23,N38,N53,N68) -> 0.59 | G8: =MAX(O8,O23,O38,O53,O68) -> 1.2 | K8: Feb | L8: 0.9 | M8: 25 | N8: 0.61 | O8: 1.1
A9: Mar | B9: =+B8 -> None | C9: =AVERAGE(L9,L24,L39,L54,L69) -> 0.75 | D9: 4.7 | E9: 15 | F9: 0.74 | G9: 1.9 | K9: Mar | L9: 0.6 | M9: 3.9 | N9: 0.59 | O9: 1 | Q9: Whole Installation table A5:G18:
A10: Apr | B10: None | C10: 0.7 | D10: 2.9 | E10: 15 | F10: 0.665 | G10: 1.1 | K10: Apr | L10: 0.6 | M10: 2.3 | N10: 0.53 | O10: 1.1 | Q10: Mean: for 1/2 hourly and daily periods calculate mean of values across all operational combustion lines for the month
A11: May | B11: None | C11: 0.75 | D11: 3.9 | E11: 15 | F11: 0.71 | G11: 2.4 | K11: May | L11: 0.6 | M11: 2.4 | N11: 0.6 | O11: 1
A12: Jun | B12: None | C12: 0.45 | D12: 1.8 | E12: 15 | F12: 0.44 | G12: 0.8 | K12: Jun | L12: 0.5 | M12: 1.6 | N12: 0.46 | O12: 0.8
A13: Jul | B13: None | C13: =AVERAGE(L13,L28,L43,L58,L73) -> 0.65 | D13: =MAX(M13,M28,M43,M58,M73) -> 4 | E13: 15 | F13: 0.625 | G13: 1.8 | K13: Jul | L13: 0.5 | M13: 2.6 | N13: 0.45 | O13: 0.8 | Q13: Maximum: for 1/2 hourly and daily periods use the highest value across all operational combustion lines for the month
A14: Aug | B14: None | C14: 0.4 | D14: 3.8 | E14: 15 | F14: 0.43 | G14: 0.8 | K14: Aug | L14: 0.4 | M14: 1.9 | N14: 0.44 | O14: 0.8
A15: Sep | B15: None | C15: 0.5 | D15: 3 | E15: 15 | F15: 0.5 | G15: 1 | K15: Sep | L15: 0.5 | M15: 2 | N15: 0.5 | O15: 0.8
A16: Oct | B16: None | C16: 0.85 | D16: 5.2 | E16: 15 | F16: 0.83 | G16: 1.8 | K16: Oct | L16: 0.7 | M16: 4 | N16: 0.69 | O16: 1.3
A17: Nov | B17: None | C17: 0.75 | D17: 4.1 | E17: 15 | F17: 0.775 | G17: 2.2 | K17: Nov | L17: 0.7 | M17: 4 | N17: 0.71 | O17: 1.2
A18: Dec | B18: None | C18: 0.6 | D18: 10.7 | E18: 15 | F18: 0.98 | G18: 1.1 | K18: Dec | L18: 0.6 | M18: 1.8 | N18: 1.31 | O18: 0.9
K19: Annual | L19: =AVERAGE(L7:L18) -> 0.6083333333 | M19: =MAX(M7:M18) -> 25 | N19: =AVERAGE(N7:N18) -> 0.6283333333 | O19: =MAX(O7:O18) -> 1.3
J21: =+A5 -> 2024 | K21: mg/Nm3 | L21: Monthly mean of half-hourly averages | M21: Highest half- hourly average | N21: Monthly mean of daily averages | O21: Highest daily average
J22: A2 | K22: Jan | L22: 1.3 | M22: 4.8 | N22: 1.26 | O22: 2.4
K23: Feb | L23: 0.6 | M23: 19.6 | N23: 0.57 | O23: 1.2
K24: Mar | L24: 0.9 | M24: 4.7 | N24: 0.89 | O24: 1.9
K25: Apr | L25: 0.8 | M25: 2.9 | N25: 0.8 | O25: 1.1
K26: May | L26: 0.9 | M26: 3.9 | N26: 0.82 | O26: 2.4
K27: Jun | L27: 0.4 | M27: 1.8 | N27: 0.42 | O27: 0.8
K28: Jul | L28: 0.8 | M28: 4 | N28: 0.8 | O28: 1.8
K29: Aug | L29: 0.4 | M29: 3.8 | N29: 0.42 | O29: 0.6
K30: Sep | L30: 0.5 | M30: 3 | N30: 0.5 | O30: 1
K31: Oct | L31: 1 | M31: 5.2 | N31: 0.97 | O31: 1.8
K32: Nov | L32: 0.8 | M32: 4.1 | N32: 0.84 | O32: 2.2
K33: Dec | L33: 0.6 | M33: 10.7 | N33: 0.65 | O33: 1.1
K34: Annual | L34: =AVERAGE(L22:L33) -> 0.75 | M34: =MAX(M22:M33) -> 19.6 | N34: =AVERAGE(N22:N33) -> 0.745 | O34: =MAX(O22:O33) -> 2.4
J36: =+A5 -> 2024 | K36: mg/Nm3 | L36: Monthly mean of half-hourly averages | M36: Highest half- hourly average | N36: Monthly mean of daily averages | O36: Highest daily average
J37: A3 | K37: Jan
K38: Feb
K39: Mar
K40: Apr
K41: May
K42: Jun
K43: Jul
K44: Aug
K45: Sep
K46: Oct
K47: Nov
A48: Comments : | K48: Dec
A49: An indicated ELV value of zero in the table above means that no ammonia limit is/was set in the permit. | K49: Annual | L49: =AVERAGE(L37:L48) ->  | M49: =MAX(M37:M48) -> 0 | N49: =AVERAGE(N37:N48) ->  | O49: =MAX(O37:O48) -> 0
J51: =+A5 -> 2024 | K51: mg/Nm3 | L51: Monthly mean of half-hourly averages | M51: Highest half- hourly average | N51: Monthly mean of daily averages | O51: Highest daily average
J52: A4 | K52: Jan
K53: Feb
K54: Mar
K55: Apr
K56: May
K57: Jun
K58: Jul
K59: Aug
K60: Sep
K61: Oct
K62: Nov
K63: Dec
K64: Annual | L64: =AVERAGE(L52:L63) ->  | M64: =MAX(M52:M63) -> 0 | N64: =AVERAGE(N52:N63) ->  | O64: =MAX(O52:O63) -> 0
J66: =+A5 -> 2024 | K66: mg/Nm3 | L66: Monthly mean of half-hourly averages | M66: Highest half- hourly average | N66: Monthly mean of daily averages | O66: Highest daily average
J67: A5 | K67: Jan
K68: Feb
K69: Mar
K70: Apr
K71: May
K72: Jun
K73: Jul
K74: Aug
K75: Sep
K76: Oct
K77: Nov
K78: Dec
K79: Annual | L79: =AVERAGE(L67:L78) ->  | M79: =MAX(M67:M78) -> 0 | N79: =AVERAGE(N67:N78) ->  | O79: =MAX(O67:O78) -> 0

Sheet Template changes log
A1: Log of changes to template (Environment Agency use only)
A3: Date | B3: Description of change | C3: New version number and date
A4: 2024-01-16 | B4: Air (periodic) tab: corrected default O2 reference from 6 to 11% | C4: Version 23.5a (for incinerators) - 16/01/2024
A5: 2024-09-23 | B5: Air (periodic) tab: corrected symbol for Thallium to Tl
A6: 2024-09-23 | B6: Air (periodic) tab: removed last year's references to different emission limit values applying from 03/12/23 and updated all relevant ELVs
A7: 2024-09-23 | B7: Tabs for continuously monitored pollutants (HCl, SO2 etc.): changed terminology in table headings to improve clarity
A8: 2024-09-23 | B8: Tabs for continuously monitored pollutants (HCl, SO2 etc.): removed last year's references to different emission limit values applying from 03/12/23 and updated all relevant ELVs
A9: 2024-09-23 | B9: Perf 1 tab: updated formula for water usage to report m3 rather than litres and corrected error with formula copying operator name
A10: 2024-09-23 | B10: Operational Summary tab: table added on start-up's and shut-downs
A11: 2024-09-23 | B11: Operational Summary tab: table added on dioxins and mercury protocols
A12: 2024-09-23 | B12: Operational Summary tab: table added on AST, QAL 2 and calibration functions
A13: 2024-09-23 | B13: CO2 N2O tab: various changes made to notes to reflect the fact that most plants should now have calibrated CEMS and flow meters + some have C14 samplers and more up to date industry data | C13: Version 24a (for incinerators) - 23/09/24
A14: 2024-01-08 | B14: CO2 N2O tab: Changed the N2O CO2 equivalence factor from 298 to 265 in line with recently updated government greenhouse gas figures: https://www.gov.uk/government/publications/greenhouse-gas-reporting-conversion-factors-2024
A15: 2024-01-08 | B15: CO2 N2O tab: Added an additional requirement for municipal EfW plants to state the yearly average biogenic percentage of the waste by mass, and reference to a document which sets out a methodology for calculating NCV of waste from the results of C14 sampling.
A16: 2024-01-08 | B16: Permit Compliance tab: Two additional columns added + explanatory notes to the table entitled "Summary of non-compliances under the permit" to allow CCS scores to be stated where relevant.
A17: 2024-01-08 | B17: Residue Quality tab: Note added explaining application of TOC and LOI limits and asking operators to report both metrics where measured. | C17: Version 24.1a (for incinerators) - 08/11/24
